Body Name,Body,Service Division Label,Service Division Code,Organisational Unit,Expenditure Category,Expenditure Code,CIPFA detailed expediture type,CIPFA detailed expediture code,Narrative,Date,Transaction number,Net Amount,Capital and Revenue,Supplier Name,Supplier ID,,
Chorley Borough Council,http://statistics.data.gov.uk/id/local-authority/30UE,Unapportionable Central OHeads,1009,Customer & Digital,`Professional Fees,14011,Direct Employee Expenses,5001,CTS update service support for 2019 2020 CTS scheme.,21/02/2020,0144572,500.00,Revenue,ACS Ltd,56512,,
Chorley Borough Council,http://statistics.data.gov.uk/id/local-authority/30UE,Democratic Represent and  Mgnt,1007,Early Intervention,External Contractor - Trust or Charity,50008,Private Contractors,5042,Active Nation Management Fee 2019 2020,21/02/2020,0144276,"32,990.46",Revenue,Active Nation UK Ltd,17144,,
Chorley Borough Council,http://statistics.data.gov.uk/id/local-authority/30UE,Elections,1012,Policy & Governance,Rent/Hire Of Premises,20017,Premises Rents,5007,hire of hall for polling station 12 December 2019,26/02/2020,0144498,473.50,Revenue,Active Nation UK Ltd,17144,,
Chorley Borough Council,http://statistics.data.gov.uk/id/local-authority/30UE,Central Support Services,1009,Customer & Digital,Telephones - Other,40085,Communication and Computing,5028,Adept Telecom - December 2019,28/02/2020,0143751,"1,418.81",Revenue,Adept Telecom PLC,77452,,
Chorley Borough Council,http://statistics.data.gov.uk/id/local-authority/30UE,Central Support Services,1009,Customer & Digital,Telephones - Other,40085,Communication and Computing,5028,Adept Telecom - January 2020,28/02/2020,0144460,"1,418.81",Revenue,Adept Telecom PLC,77452,,
Chorley Borough Council,http://statistics.data.gov.uk/id/local-authority/30UE,Capital,Capital,Commercial Services,Architects Fees,03022,Capital Expenditure,Capital,Extra 20k budget,05/02/2020,0144172,"3,212.50",Capital,AEW Architects & Designers Ltd,66520,,
Chorley Borough Council,http://statistics.data.gov.uk/id/local-authority/30UE,Unapportionable Central OHeads,1009,Customer & Digital,Bank Charges,40151,Miscellaneous Expenses,5034,add account fee,12/02/2020,0144363,10.00,Revenue,Allpay Net Ltd,17242,,
Chorley Borough Council,http://statistics.data.gov.uk/id/local-authority/30UE,Unapportionable Central OHeads,1009,Customer & Digital,Bank Charges,40151,Miscellaneous Expenses,5034,Returned Cheques,12/02/2020,0144363,4.20,Revenue,Allpay Net Ltd,17242,,
Chorley Borough Council,http://statistics.data.gov.uk/id/local-authority/30UE,Unapportionable Central OHeads,1009,Customer & Digital,Bank Charges,40151,Miscellaneous Expenses,5034,Post Office Transactions,12/02/2020,0144363,724.27,Revenue,Allpay Net Ltd,17242,,
Chorley Borough Council,http://statistics.data.gov.uk/id/local-authority/30UE,Unapportionable Central OHeads,1009,Customer & Digital,Bank Charges,40151,Miscellaneous Expenses,5034,PayPoint Transactions,12/02/2020,0144363,305.20,Revenue,Allpay Net Ltd,17242,,
Chorley Borough Council,http://statistics.data.gov.uk/id/local-authority/30UE,Unapportionable Central OHeads,1009,Customer & Digital,Bank Charges,40151,Miscellaneous Expenses,5034,WebconnecT Monthly Charge,12/02/2020,0144363,46.00,Revenue,Allpay Net Ltd,17242,,
Chorley Borough Council,http://statistics.data.gov.uk/id/local-authority/30UE,Unapportionable Central OHeads,1009,Commercial Services,Burglar Alarms & Security Systems,20075,Fixtures and Fittings,5010,PPM Blanket - intruder and other security systems,05/02/2020,0143886,485.00,Revenue,Amalgamated Ltd,78289,,
Chorley Borough Council,http://statistics.data.gov.uk/id/local-authority/30UE,Unapportionable Central OHeads,1009,Commercial Services,Burglar Alarms & Security Systems,20075,Fixtures and Fittings,5010,PPM Blanket - intruder and other security systems,05/02/2020,0143895,485.00,Revenue,Amalgamated Ltd,78289,,
Chorley Borough Council,http://statistics.data.gov.uk/id/local-authority/30UE,Unapportionable Central OHeads,1009,Commercial Services,Burglar Alarms & Security Systems,20075,Fixtures and Fittings,5010,PPM Blanket - intruder and other security systems,19/02/2020,0144082,359.71,Revenue,Amalgamated Ltd,78289,,
Chorley Borough Council,http://statistics.data.gov.uk/id/local-authority/30UE,Unapportionable Central OHeads,1009,Policy & Governance,Refreshments,40036,Catering,5024,"Sanitisation, provision of water and hire of machines for all Council sites",07/02/2020,0143562,523.96,Revenue,Angel Springs Ltd T/A Waterlogic UK,77689,,
Chorley Borough Council,http://statistics.data.gov.uk/id/local-authority/30UE,Corporate Management,1008,Chief Executive,Employee Related Insurance,18003,Indirect Employee Expenses,5002,AON Broker & Consultancy fees 2020,07/02/2020,0143722,"1,000.00",Revenue,Aon UK Limited Accounts Division,76559,,
Chorley Borough Council,http://statistics.data.gov.uk/id/local-authority/30UE,Corporate Management,1008,Chief Executive,Employee Related Insurance,18003,Indirect Employee Expenses,5002,"Insurance Renewals inc General Property, Business Interruption, Crime, Fine Arts, Motor, Personal Accident, Terrorism 2020",12/02/2020,0143723,"165,555.96",Revenue,Aon UK Limited Accounts Division,76559,,
Chorley Borough Council,http://statistics.data.gov.uk/id/local-authority/30UE,Corporate Management,1008,Chief Executive,Employee Related Insurance,18003,Indirect Employee Expenses,5002,AON Broker & Consultancy fees 2020,07/02/2020,0143756,"2,125.00",Revenue,Aon UK Limited Accounts Division,76559,,
Chorley Borough Council,http://statistics.data.gov.uk/id/local-authority/30UE,Corporate Management,1008,Chief Executive,Employee Related Insurance,18003,Indirect Employee Expenses,5002,"Insurance Renewals inc General Property, Business Interruption, Crime, Fine Arts, Motor, Personal Accident, Terrorism 2020",07/02/2020,0143757,"4,623.19",Revenue,Aon UK Limited Accounts Division,76559,,
Chorley Borough Council,http://statistics.data.gov.uk/id/local-authority/30UE,Corporate Management,1008,Chief Executive,Employee Related Insurance,18003,Indirect Employee Expenses,5002,"Insurance Renewals inc General Property, Business Interruption, Crime, Fine Arts, Motor, Personal Accident, Terrorism 2020",07/02/2020,0143758,"5,692.33",Revenue,Aon UK Limited Accounts Division,76559,,
Chorley Borough Council,http://statistics.data.gov.uk/id/local-authority/30UE,Corporate Management,1008,Chief Executive,Employee Related Insurance,18003,Indirect Employee Expenses,5002,"Insurance Renewals inc General Property, Business Interruption, Crime, Fine Arts, Motor, Personal Accident, Terrorism 2020",07/02/2020,0143759,"79,862.72",Revenue,Aon UK Limited Accounts Division,76559,,
Chorley Borough Council,http://statistics.data.gov.uk/id/local-authority/30UE,Corporate Management,1008,Chief Executive,Employee Related Insurance,18003,Indirect Employee Expenses,5002,"Insurance Renewals inc General Property, Business Interruption, Crime, Fine Arts, Motor, Personal Accident, Terrorism 2020",07/02/2020,0143760,972.16,Revenue,Aon UK Limited Accounts Division,76559,,
Chorley Borough Council,http://statistics.data.gov.uk/id/local-authority/30UE,Corporate Management,1008,Chief Executive,Employee Related Insurance,18003,Indirect Employee Expenses,5002,"Insurance Renewals inc General Property, Business Interruption, Crime, Fine Arts, Motor, Personal Accident, Terrorism 2020",12/02/2020,0143761,"103,814.31",Revenue,Aon UK Limited Accounts Division,76559,,
Chorley Borough Council,http://statistics.data.gov.uk/id/local-authority/30UE,Corporate Management,1008,Chief Executive,Employee Related Insurance,18003,Indirect Employee Expenses,5002,"Insurance Renewals inc General Property, Business Interruption, Crime, Fine Arts, Motor, Personal Accident, Terrorism 2020",07/02/2020,0143762,"3,920.00",Revenue,Aon UK Limited Accounts Division,76559,,
Chorley Borough Council,http://statistics.data.gov.uk/id/local-authority/30UE,Corporate Management,1008,Chief Executive,Employee Related Insurance,18003,Indirect Employee Expenses,5002,"Insurance Renewals inc General Property, Business Interruption, Crime, Fine Arts, Motor, Personal Accident, Terrorism 2020",07/02/2020,0143763,"10,424.38",Revenue,Aon UK Limited Accounts Division,76559,,
Chorley Borough Council,http://statistics.data.gov.uk/id/local-authority/30UE,Democratic Represent and  Mgnt,1007,Early Intervention,Supplies-Grounds Maintenance,40025,"Equipment, Furniture & Materia",5023,"Path Creation at Sutton Grove, Great Knowley, Chorley. Quote No Q813780. To agreed spec",28/02/2020,0144575,"3,190.38",Revenue,AP Broome Landscapes,67257,,
Chorley Borough Council,http://statistics.data.gov.uk/id/local-authority/30UE,Unapportionable Central OHeads,1009,Policy & Governance,Car Leasing Payment,14100,Direct Employee Expenses,5001,VIN REDACTED,19/02/2020,0144180,"2,143.68",Revenue,Arnold Clark Finance Ltd,20685,,
Chorley Borough Council,http://statistics.data.gov.uk/id/local-authority/30UE,Unapportionable Central OHeads,1009,Policy & Governance,Car Leasing Payment,14100,Direct Employee Expenses,5001,vat,19/02/2020,0144180,186.07,Revenue,Arnold Clark Finance Ltd,20685,,
Chorley Borough Council,http://statistics.data.gov.uk/id/local-authority/30UE,Control Accounts,Control,Policy & Governance,Manual Control Account,00001,Balance Sheet,Balance,-vat,19/02/2020,0144180,-186.07,Revenue,Arnold Clark Finance Ltd,20685,,
Chorley Borough Council,http://statistics.data.gov.uk/id/local-authority/30UE,Corporate Management,1008,Policy & Governance,Car Leasing Payment,14100,Direct Employee Expenses,5001,"Audi A1 Sportback 25 TFSI S Line 5 dr, Turbo Blue, 17`` 5 V spoke design part polished wheels, 3 years, 6000 miles, 107g/km",26/02/2020,0144541,"2,553.36",Revenue,Arnold Clark Finance Ltd,20685,,
Chorley Borough Council,http://statistics.data.gov.uk/id/local-authority/30UE,Corporate Management,1008,Policy & Governance,Car Leasing Payment,14100,Direct Employee Expenses,5001,vat,26/02/2020,0144541,231.27,Revenue,Arnold Clark Finance Ltd,20685,,
Chorley Borough Council,http://statistics.data.gov.uk/id/local-authority/30UE,Control Accounts,Control,Policy & Governance,Manual Control Account,00001,Balance Sheet,Balance,-vat,26/02/2020,0144541,-231.27,Revenue,Arnold Clark Finance Ltd,20685,,
Chorley Borough Council,http://statistics.data.gov.uk/id/local-authority/30UE,Central Support Services,1009,Policy & Governance,Car Leasing Payment,14100,Direct Employee Expenses,5001,VIN REDACTED,28/02/2020,0144542,"2,615.49",Revenue,Arval UK Ltd,18240,,
Chorley Borough Council,http://statistics.data.gov.uk/id/local-authority/30UE,Central Support Services,1009,Policy & Governance,Car Leasing Payment,14100,Direct Employee Expenses,5001,vat,28/02/2020,0144542,219.75,Revenue,Arval UK Ltd,18240,,
Chorley Borough Council,http://statistics.data.gov.uk/id/local-authority/30UE,Control Accounts,Control,Policy & Governance,Manual Control Account,00001,Balance Sheet,Balance,-vat,28/02/2020,0144542,-219.75,Revenue,Arval UK Ltd,18240,,
Chorley Borough Council,http://statistics.data.gov.uk/id/local-authority/30UE,Central Support Services,1009,Early Intervention,Miscellaneous Expenses,40200,Miscellaneous Expenses,5034,neighbourhood priorities,21/02/2020,0144499,"1,500.00",Revenue,Astley Village Parish Council,17642,,
Chorley Borough Council,http://statistics.data.gov.uk/id/local-authority/30UE,Public Transport,1067,Customer & Digital,Bus Shelters -Maintenance,20062,Grounds Maintenance Costs,5013,removal of Bus shelter from o/s 239 Preston Road and Delivery to Bengal St Depot PR7 1SA:  425.00,07/02/2020,0144298,425.00,Revenue,Autocross Euroshel Ltd,77509,,
Chorley Borough Council,http://statistics.data.gov.uk/id/local-authority/30UE,Capital,Capital,Early Intervention,Other Expenses,03030,Capital Expenditure,Capital,"Supply and planting of plants for Market Walk, including tree anchors and watering system plus composted bark mulch.",05/02/2020,0144102,"7,664.60",Capital,Bannister Hall Ltd,22515,,
Chorley Borough Council,http://statistics.data.gov.uk/id/local-authority/30UE,Capital,Capital,Early Intervention,Other Expenses,03030,Capital Expenditure,Capital,"Supply and planting of plants for Market Walk, including tree anchors and watering system plus composted bark mulch.",12/02/2020,0144245,646.00,Capital,Bannister Hall Ltd,22515,,
Chorley Borough Council,http://statistics.data.gov.uk/id/local-authority/30UE,Capital,Capital,Early Intervention,Other Expenses,03030,Capital Expenditure,Capital,"Supply and planting of plants for Market Walk, including tree anchors and watering system plus composted bark mulch.",05/02/2020,0144253,250.80,Capital,Bannister Hall Ltd,22515,,
Chorley Borough Council,http://statistics.data.gov.uk/id/local-authority/30UE,Corporate Management,1008,Policy & Governance,Bank Charges,40151,Miscellaneous Expenses,5034,,19/02/2020,0144464,140.00,Revenue,Barclaycard Merchant Services,61601,,
Chorley Borough Council,http://statistics.data.gov.uk/id/local-authority/30UE,Corporate Management,1008,Policy & Governance,Bank Charges,40151,Miscellaneous Expenses,5034,,19/02/2020,0144464,155.71,Revenue,Barclaycard Merchant Services,61601,,
Chorley Borough Council,http://statistics.data.gov.uk/id/local-authority/30UE,Corporate Management,1008,Policy & Governance,Bank Charges,40151,Miscellaneous Expenses,5034,,19/02/2020,0144465,15.00,Revenue,Barclaycard Merchant Services,61601,,
Chorley Borough Council,http://statistics.data.gov.uk/id/local-authority/30UE,Corporate Management,1008,Policy & Governance,Bank Charges,40151,Miscellaneous Expenses,5034,,19/02/2020,0144465,"2,229.50",Revenue,Barclaycard Merchant Services,61601,,
Chorley Borough Council,http://statistics.data.gov.uk/id/local-authority/30UE,Corporate Management,1008,Policy & Governance,Bank Charges,40151,Miscellaneous Expenses,5034,,19/02/2020,0144466,15.00,Revenue,Barclaycard Merchant Services,61601,,
Chorley Borough Council,http://statistics.data.gov.uk/id/local-authority/30UE,Corporate Management,1008,Policy & Governance,Bank Charges,40151,Miscellaneous Expenses,5034,,19/02/2020,0144466,237.42,Revenue,Barclaycard Merchant Services,61601,,
Chorley Borough Council,http://statistics.data.gov.uk/id/local-authority/30UE,Control Accounts,Control,Policy & Governance,General Balances,00100,Balance Sheet,Balance,28 jan 2020,19/02/2020,0144616,"3,452.30",Revenue,Barclaycard Merchant Services,61601,,
Chorley Borough Council,http://statistics.data.gov.uk/id/local-authority/30UE,Corporate Management,1008,Policy & Governance,Publicity - Advertising,40157,Miscellaneous Expenses,5034,Christmas Radio Adverts for Market Walk.,21/02/2020,0144304,"3,021.49",Revenue,Bauer Active Ltd,50574,,
Chorley Borough Council,http://statistics.data.gov.uk/id/local-authority/30UE,Corporate Management,1008,Policy & Governance,Publicity - Advertising,40157,Miscellaneous Expenses,5034,Christmas Radio Adverts for Market Walk.,21/02/2020,0144308,"1,663.64",Revenue,Bauer Active Ltd,50574,,
Chorley Borough Council,http://statistics.data.gov.uk/id/local-authority/30UE,Unapportionable Central OHeads,1009,Policy & Governance,Training Course Fees,17010,Indirect Employee Expenses,5002,4 Day VAT Course - NAME REDACTED,19/02/2020,0144362,596.00,Revenue,Blackburn with Darwen Borough Council,21000,,
Chorley Borough Council,http://statistics.data.gov.uk/id/local-authority/30UE,Economic Development,1096,Commercial Services,Christmas Lights,40179,Miscellaneous Expenses,5034,"Supply ,erect, maintain, remove and store Christmas lights display for Chorley Town Centre 2019/20 - Inc switch on costs",12/02/2020,0144321,"22,840.00",Revenue,Blackpool Borough Council,16518,,
Chorley Borough Council,http://statistics.data.gov.uk/id/local-authority/30UE,Business Support,1095,Commercial Services,Christmas Lights,40179,Miscellaneous Expenses,5034,"Supply ,erect, maintain, remove and store Christmas lights display for Market Walk  Shopping Centre, Chorley 2019/20",12/02/2020,0144322,"14,655.00",Revenue,Blackpool Borough Council,16518,,
Chorley Borough Council,http://statistics.data.gov.uk/id/local-authority/30UE,Business Support,1095,Commercial Services,Building Services,20030,Fixtures and Fittings,5010,10 boxes of carpet tiles and strong glue,07/02/2020,0143899,800.00,Revenue,Brian J Watts Flooring Ltd,78415,,
Chorley Borough Council,http://statistics.data.gov.uk/id/local-authority/30UE,Central Support Services,1009,Customer & Digital,Telephones - Calls,40084,Communication and Computing,5028,usage charges,28/02/2020,0144104,262.89,Revenue,British Telecom,17189,,
Chorley Borough Council,http://statistics.data.gov.uk/id/local-authority/30UE,Central Support Services,1009,Customer & Digital,Telephones - Other,40085,Communication and Computing,5028,one off charges,28/02/2020,0144104,767.70,Revenue,British Telecom,17189,,
Chorley Borough Council,http://statistics.data.gov.uk/id/local-authority/30UE,Central Support Services,1009,Customer & Digital,Telephones - Rentals,40083,Communication and Computing,5028,recurring charges,28/02/2020,0144104,"3,294.25",Revenue,British Telecom,17189,,
Chorley Borough Council,http://statistics.data.gov.uk/id/local-authority/30UE,Capital,Capital,Early Intervention,Main Contractor,03007,Capital Expenditure,Capital,Refurbishment works to Coronation Rec Ground kiosk as outlined in the specification and schedule of works,28/02/2020,0144615,"9,619.84",Capital,Bryan Lee Building Contractors Ltd,78160,,
Chorley Borough Council,http://statistics.data.gov.uk/id/local-authority/30UE,Service Management & Support,1009,Customer & Digital,Supplies-Grounds Maintenance,40025,"Equipment, Furniture & Materia",5023,extra costs for waste oil removal 14/01/2020 - OIL INTERCEPTOR NEEDS EMPTYING 30/01/2020 - HAVE OIL WASTE PICKED,28/02/2020,0144638,"1,675.00",Revenue,C J Lyon,16579,,
Chorley Borough Council,http://statistics.data.gov.uk/id/local-authority/30UE,Homelessness,1075,Early Intervention,Service Fees,40056,Services,5027,Provision of Accommodation Finding Service (24 Hours) and Resettlement Service (6 hours) - From 1st Oct 2019 - 31st Dec 2019,28/02/2020,0144795,"7,286.50",Revenue,Calico Enterprise,73338,,
Chorley Borough Council,http://statistics.data.gov.uk/id/local-authority/30UE,Unapportionable Central OHeads,1009,Policy & Governance,Employee Related Insurance,18003,Indirect Employee Expenses,5002,Canada Life 31 January 2020,19/02/2020,0144371,"1,000.00",Revenue,Canada Life,22284,,
Chorley Borough Council,http://statistics.data.gov.uk/id/local-authority/30UE,Central Support Services,1009,Customer & Digital,Miscellaneous Expenses,40200,Miscellaneous Expenses,5034,1/10/2019 to 31/12/2019,05/02/2020,0143224,"2,303.85",Revenue,Canon (UK) Ltd,17492,,
Chorley Borough Council,http://statistics.data.gov.uk/id/local-authority/30UE,Housing Benefit Administration,1077,Customer & Digital,Training Course Fees,17010,Indirect Employee Expenses,5002,EOY Seminars 20 21 Ctax and business rates Webinar 900 + one place for Benefits EOY Seminar manchester 14Jan20 360. ,21/02/2020,0144318,"1,260.00",Revenue,Capita Business Services Ltd,17151,,
Chorley Borough Council,http://statistics.data.gov.uk/id/local-authority/30UE,Business Support,1095,Commercial Services,Grants To Other Organisations,40127,Grants and Subscriptions,5031,Shop Front Improvement Grant (second instalment),28/02/2020,0144505,"3,128.00",Revenue,Carma Uk Ltd t/a saving-you.com,78390,,
Chorley Borough Council,http://statistics.data.gov.uk/id/local-authority/30UE,Parking Services,1066,Commercial Services,External Contractors,50008,Private Contractors,5042,Processing Services for 01.04.2019-31.03.2020 Notice Process Tel and I/net Payments I/net Evidence Telephone Assist to Public,05/02/2020,0144137,439.41,Revenue,Chipside Ltd,22063,,
Chorley Borough Council,http://statistics.data.gov.uk/id/local-authority/30UE,Corporate Management,1008,Customer & Digital,Taxi Testing & Vehicle Safety Report,40234,Services,5027,MOT,12/02/2020,0144373,"1,480.95",Revenue,Chorley Autocare Ltd,17110,,
Chorley Borough Council,http://statistics.data.gov.uk/id/local-authority/30UE,Corporate Management,1008,Customer & Digital,Taxi Testing & Vehicle Safety Report,40234,Services,5027,Taxi,12/02/2020,0144373,230.85,Revenue,Chorley Autocare Ltd,17110,,
Chorley Borough Council,http://statistics.data.gov.uk/id/local-authority/30UE,Democratic Represent and  Mgnt,1007,Policy & Governance,Tools & Equipment - Purchase,40003,"Equipment, Furniture & Materia",5023,Lanta Fireball Tri Slim LED multicoloured stage lamp QTY 4 Unit price 98.99 each Total 395.96,19/02/2020,0144446,395.96,Revenue,Chorley Electrical Traders Ltd,16330,,
Chorley Borough Council,http://statistics.data.gov.uk/id/local-authority/30UE,Democratic Represent and  Mgnt,1007,Policy & Governance,Grants To Other Organisations,40127,Grants and Subscriptions,5031,cllr grant,19/02/2020,0144519,250.00,Revenue,Chorley FC Women,78491,,
Chorley Borough Council,http://statistics.data.gov.uk/id/local-authority/30UE,Unapportionable Central OHeads,1009,Policy & Governance,Publications,40054,"Printing, Stationery & General",5026,CIPFA Publications Subscription 1 April 2020 - 31 March 2021,19/02/2020,0144537,"2,775.00",Revenue,CIPFA Business Ltd,16247,,
Chorley Borough Council,http://statistics.data.gov.uk/id/local-authority/30UE,Unapportionable Central OHeads,1009,Commercial Services,General Repairs - Reactive,20004,Repairs Maintenance & Alts,5005,Blanket Reactive,05/02/2020,0144171,282.73,Revenue,Classic Lifts Limited,20897,,
Chorley Borough Council,http://statistics.data.gov.uk/id/local-authority/30UE,Capital,Capital,Early Intervention,Main Contractor,03007,Capital Expenditure,Capital,Yarrow Meadows Phase 2 works.  Various ecological enhancements and footpath works. To be complete 30 November 2019,12/02/2020,0144320,"5,000.00",Capital,Conservation Contracts North West,20520,,
Chorley Borough Council,http://statistics.data.gov.uk/id/local-authority/30UE,Democratic Represent and  Mgnt,1007,Early Intervention,Supplies-Grounds Maintenance,40025,"Equipment, Furniture & Materia",5023,Habitat Suitability Index and reports for Cripplegate and Wilderswood ponds.,28/02/2020,0144568,525.00,Revenue,Conservation Contracts North West,20520,,
Chorley Borough Council,http://statistics.data.gov.uk/id/local-authority/30UE,Democratic Represent and  Mgnt,1007,Early Intervention,Supplies-Grounds Maintenance,40025,"Equipment, Furniture & Materia",5023,"Open Space enhancement at The Cedars and The Willows, Eaves Green to Spec agreed.",28/02/2020,0144751,"4,000.00",Revenue,Conservation Contracts North West,20520,,
Chorley Borough Council,http://statistics.data.gov.uk/id/local-authority/30UE,Democratic Represent and  Mgnt,1007,Early Intervention,Water Abstraction Licence,20025,Water Services,5009,To supply/install stone overflow to new pond on The Willows linking to existing ponds.  Install pipe under path. Leave site tidy.,28/02/2020,0144752,"2,300.66",Revenue,Conservation Contracts North West,20520,,
Chorley Borough Council,http://statistics.data.gov.uk/id/local-authority/30UE,Central Support Services,1009,Customer & Digital,Computer Equipment-Purchase,40098,Communication and Computing,5028,Relocation of ``old`` fibre panels Union Street to CCTV cabinet  16 way (1U) - with S/m LC adaptors  32 way (1U) -  LC adaptors ,05/02/2020,0142693,842.83,Revenue,Core Integrated Solutions,77043,,
Chorley Borough Council,http://statistics.data.gov.uk/id/local-authority/30UE,Central Support Services,1009,Customer & Digital,ICT Software Implementation,40114,Communication and Computing,5028,variation - supply and install of 450 x 450mm inset frame and cover cable chamber lids.  The inset framed type allow for the footw,07/02/2020,0144315,900.00,Revenue,Core Integrated Solutions,77043,,
Chorley Borough Council,http://statistics.data.gov.uk/id/local-authority/30UE,Unapportionable Central OHeads,1009,Customer & Digital,General Repairs - Reactive,20004,Repairs Maintenance & Alts,5005,Blanket order reactive repairs 2019/20,05/02/2020,0144089,327.20,Revenue,Corlett Electrical Eng Co Ltd,16271,,
Chorley Borough Council,http://statistics.data.gov.uk/id/local-authority/30UE,Unapportionable Central OHeads,1009,Customer & Digital,General Repairs - Reactive,20004,Repairs Maintenance & Alts,5005,Blanket order reactive repairs 2019/20,05/02/2020,0144094,595.88,Revenue,Corlett Electrical Eng Co Ltd,16271,,
Chorley Borough Council,http://statistics.data.gov.uk/id/local-authority/30UE,Central Support Services,1009,Commercial Services,General Repairs - Reactive,20004,Repairs Maintenance & Alts,5005,Blanket order reactive repairs 2019/20,05/02/2020,0144200,412.16,Revenue,Corlett Electrical Eng Co Ltd,16271,,
Chorley Borough Council,http://statistics.data.gov.uk/id/local-authority/30UE,Unapportionable Central OHeads,1009,Commercial Services,Gas,20014,Energy Costs,5006,dec 19 to jan 2020,05/02/2020,0144208,"1,670.26",Revenue,Corona Energy Retail 2 Ltd,67249,,
Chorley Borough Council,http://statistics.data.gov.uk/id/local-authority/30UE,Unapportionable Central OHeads,1009,Commercial Services,Gas,20014,Energy Costs,5006,dec19 to jan2020,05/02/2020,0144216,"1,278.79",Revenue,Corona Energy Retail 2 Ltd,67249,,
Chorley Borough Council,http://statistics.data.gov.uk/id/local-authority/30UE,Democratic Represent and  Mgnt,1007,Commercial Services,Gas,20014,Energy Costs,5006,dec19 to jan2020,05/02/2020,0144217,488.08,Revenue,Corona Energy Retail 2 Ltd,67249,,
Chorley Borough Council,http://statistics.data.gov.uk/id/local-authority/30UE,Democratic Represent and  Mgnt,1007,Commercial Services,Gas,20014,Energy Costs,5006,dec19 to jan 2020,05/02/2020,0144231,"1,887.88",Revenue,Corona Energy Retail 2 Ltd,67249,,
Chorley Borough Council,http://statistics.data.gov.uk/id/local-authority/30UE,Democratic Represent and  Mgnt,1007,Commercial Services,Gas,20014,Energy Costs,5006,dec19 to jan2020,05/02/2020,0144232,298.12,Revenue,Corona Energy Retail 2 Ltd,67249,,
Chorley Borough Council,http://statistics.data.gov.uk/id/local-authority/30UE,Homelessness,1075,Commercial Services,Gas,20014,Energy Costs,5006,dec19 to jan 2020,05/02/2020,0144233,"1,235.16",Revenue,Corona Energy Retail 2 Ltd,67249,,
Chorley Borough Council,http://statistics.data.gov.uk/id/local-authority/30UE,Central Support Services,1009,Commercial Services,General Subscriptions,40146,Grants and Subscriptions,5031,Annual Subscription of online property valuations resource,05/02/2020,0144272,"3,432.00",Revenue,CoStar UK Limited,67985,,
Chorley Borough Council,http://statistics.data.gov.uk/id/local-authority/30UE,Democratic Represent and  Mgnt,1007,Customer & Digital,Grounds Maintenance Contractor,20043,Grounds Maintenance Costs,5013,2 Days work for man and machine doing ditch work and scrapes at Ellerbeck and railway park Brinscall,19/02/2020,0144532,500.00,Revenue,Derek R Smith,21092,,
Chorley Borough Council,http://statistics.data.gov.uk/id/local-authority/30UE,Democratic Represent and  Mgnt,1007,Customer & Digital,Grounds Maintenance Contractor,20043,Grounds Maintenance Costs,5013,2 days work for man and machine to scrape back footpath network on Hic-Bibi nature reserve.,19/02/2020,0144536,500.00,Revenue,Derek R Smith,21092,,
Chorley Borough Council,http://statistics.data.gov.uk/id/local-authority/30UE,Unapportionable Central OHeads,1009,Policy & Governance,Miscellaneous Expenses,40200,Miscellaneous Expenses,5034,Invoice No. 00360005526 Reference No. 000180 Mayflower National Compact Membership Fee for Chorley Borough Council,05/02/2020,0144184,"12,000.00",Revenue,Destination Plymouth Ltd.,78484,,
Chorley Borough Council,http://statistics.data.gov.uk/id/local-authority/30UE,Service Management & Support,1009,Customer & Digital,Tools & Equipment - Maintenance,40005,"Equipment, Furniture & Materia",5023,as per delivery note 040259  repairs to: Stihl 135 x 2 sharpen 24`` hedge cutter blades,28/02/2020,0144641,305.10,Revenue,Dick Leigh,17138,,
Chorley Borough Council,http://statistics.data.gov.uk/id/local-authority/30UE,Central Support Services,1009,Early Intervention,Bailiffs' Fees,40071,Services,5027,eviction fee,14/02/2020,0143903,"1,250.00",Revenue,Direct Collection Bailiffs LTD,77838,,
Chorley Borough Council,http://statistics.data.gov.uk/id/local-authority/30UE,Unapportionable Central OHeads,1009,Policy & Governance,HR Approved Occ Health Fees,15201,Indirect Employee Expenses,5002,Consultation with NAME REDACTED on 15/01/20,26/02/2020,0144658,300.00,Revenue,Dr R Thomas,78521,,
Chorley Borough Council,http://statistics.data.gov.uk/id/local-authority/30UE,Capital,Capital,Early Intervention,Main Contractor,03007,Capital Expenditure,Capital,"Kem Mill Lane Playing Fields Car Park, access/Landscaping works (Phase 1) In accordance with email 6th August 2019.",28/02/2020,0143843,"6,141.19",Capital,Duncan Ross Ltd,76803,,
Chorley Borough Council,http://statistics.data.gov.uk/id/local-authority/30UE,Business Support,1095,Commercial Services,Electricity,20013,Energy Costs,5006,ADDRESS REDACTED,28/02/2020,0144793,293.62,Revenue,Ecotricity,78400,,
Chorley Borough Council,http://statistics.data.gov.uk/id/local-authority/30UE,Parking Services,1066,Commercial Services,Fixtures & Fittings - Repair/Mtnce,20028,Fixtures and Fittings,5010,"Portland Street Car Park barrier: Take down height barrier following vehicle strike, repair, re-galvanise, powder coat, and re-erect",05/02/2020,0144174,770.00,Revenue,Edwards Wrought Iron Ltd,77654,,
Chorley Borough Council,http://statistics.data.gov.uk/id/local-authority/30UE,Central Support Services,1009,Customer & Digital,Mobile Voice and Data,40086,Communication and Computing,5028,03 Feb 2020,19/02/2020,0144612,"2,375.23",Revenue,EE - Orange,16486,,
Chorley Borough Council,http://statistics.data.gov.uk/id/local-authority/30UE,Central Support Services,1009,Customer & Digital,Mobile Voice and Data,40086,Communication and Computing,5028,non vat,19/02/2020,0144612,42.55,Revenue,EE - Orange,16486,,
Chorley Borough Council,http://statistics.data.gov.uk/id/local-authority/30UE,Central Support Services,1009,Commercial Services,Professional Fees,40063,Services,5027,Additional works as per CBC email of 06/12/19,21/02/2020,0144695,"3,450.00",Revenue,Egniol Environmental Ltd,78236,,
Chorley Borough Council,http://statistics.data.gov.uk/id/local-authority/30UE,Service Management & Support,1009,Customer & Digital,Training Course Fees,17010,Indirect Employee Expenses,5002,WAMITAB Level 4 High Risk Operator Competence for Managing Transfer of Hazardous Waste- registration fee 836.00,12/02/2020,0143811,836.00,Revenue,Environmental Leadership Ltd,77245,,
Chorley Borough Council,http://statistics.data.gov.uk/id/local-authority/30UE,Capital,Capital,Commercial Services,Other Contractor,03012,Capital Expenditure,Capital,4 switches for strawberry fields DOP as agreed,21/02/2020,0144144,"15,669.85",Capital,Essensys Ltd,77836,,
Chorley Borough Council,http://statistics.data.gov.uk/id/local-authority/30UE,Business Support,1095,Commercial Services,Internet Charges,40104,Communication and Computing,5028,"Your invoice UK17505, essensysCloud primary circuit, allocated internet and software charge for 01/11/19 to 30/11/19",05/02/2020,0144146,"3,000.00",Revenue,Essensys Ltd,77836,,
Chorley Borough Council,http://statistics.data.gov.uk/id/local-authority/30UE,Business Support,1095,Commercial Services,Internet Charges,40104,Communication and Computing,5028,"Your invoice UK17318, Phone, Public IP and IT Networking equipment for Strawberry Fields digital Hub 01/09/19",05/02/2020,0144147,449.28,Revenue,Essensys Ltd,77836,,
Chorley Borough Council,http://statistics.data.gov.uk/id/local-authority/30UE,Business Support,1095,Commercial Services,Internet Charges,40104,Communication and Computing,5028,"Your invoice 17114, essensys software, bandwidth and direct connect fee for Strawberry Fields Digital Hub - 01/10/19 to 31/10/19",05/02/2020,0144148,"3,000.00",Revenue,Essensys Ltd,77836,,
Chorley Borough Council,http://statistics.data.gov.uk/id/local-authority/30UE,Business Support,1095,Commercial Services,Internet Charges,40104,Communication and Computing,5028,"Your invoice UK18287, Connect Growth Software, etc for dates up to 31/01/2020",05/02/2020,0144179,"4,971.00",Revenue,Essensys Ltd,77836,,
Chorley Borough Council,http://statistics.data.gov.uk/id/local-authority/30UE,Business Support,1095,Commercial Services,Computer Software-Maintenance,40107,Communication and Computing,5028,"Main connection, data and voice services at SF for February 2020",28/02/2020,0144223,"3,810.00",Revenue,Essensys Ltd,77836,,
Chorley Borough Council,http://statistics.data.gov.uk/id/local-authority/30UE,Central Support Services,1009,Early Intervention,Miscellaneous Expenses,40200,Miscellaneous Expenses,5034,tree planting,21/02/2020,0144523,"2,000.00",Revenue,Euxton Parish Council,16838,,
Chorley Borough Council,http://statistics.data.gov.uk/id/local-authority/30UE,Service Management & Support,1009,Customer & Digital,Vehicles and Plant Maintenance,30045,Direct Transport Costs,5016,"4xfilter cover assy, 26xcarrier rings (bearings), 14xrings, SEAL, 1xPlugs, 1x`o` ring, supplier charge, 6xadjusting rod, 4xskid",05/02/2020,0144040,"1,030.19",Revenue,F R Sharrock Ltd,18091,,
Chorley Borough Council,http://statistics.data.gov.uk/id/local-authority/30UE,Capital,Capital,Early Intervention,Main Contractor,03007,Capital Expenditure,Capital,support grant car park extension,21/02/2020,0144526,"10,000.00",Capital,Fairview Youth & Community Association,20589,,
Chorley Borough Council,http://statistics.data.gov.uk/id/local-authority/30UE,Corporate Management,1008,Customer & Digital,Unitary Payment(S),50009,Private Contractors,5042,Provision of waste and recycling collection services 2019-20,26/02/2020,0144252,"176,626.62",Revenue,FCC Environment Services (UK) Limited,77903,,
Chorley Borough Council,http://statistics.data.gov.uk/id/local-authority/30UE,Parking Services,1066,Commercial Services,External Contractors,50008,Private Contractors,5042,To add 2 extra machines to existing maintenance agreement. Machines located at Flat Iron Car Park For 10/10/2019 - 30/06/2020,05/02/2020,0143998,876.48,Revenue,Flow Bird Smart City UK Ltd,16279,,
Chorley Borough Council,http://statistics.data.gov.uk/id/local-authority/30UE,Central Support Services,1009,Chief Executive,Legal Fees,40171,Miscellaneous Expenses,5034,Professional Fees (Invoice no: 535827),05/02/2020,0143737,"6,000.00",Revenue,Forbes Solicitors,17527,,
Chorley Borough Council,http://statistics.data.gov.uk/id/local-authority/30UE,Corporate Management,1008,Chief Executive,Professional Fees,40063,Services,5027,Professional Fees - amendment to shared services agreement,28/02/2020,0144551,"1,750.00",Revenue,Forbes Solicitors,17527,,
Chorley Borough Council,http://statistics.data.gov.uk/id/local-authority/30UE,Unapportionable Central OHeads,1009,Policy & Governance,Processional Routes,40177,Miscellaneous Expenses,5034,"Band to play at Chorley`s Remembrance Sunday Service, Cenotaph, Astley Park on 10/11/2019. Fee includes the Bugler.",07/02/2020,0142881,600.00,Revenue,Formby Band,77694,,
Chorley Borough Council,http://statistics.data.gov.uk/id/local-authority/30UE,Central Support Services,1009,Customer & Digital,Legal Fees,40171,Miscellaneous Expenses,5034,Brief on Hearing 16.01.2020 in respect of NAME REDACTED-v-Chorley Bc,26/02/2020,0144693,"1,000.00",Revenue,Freddie Humphreys,78375,,
Chorley Borough Council,http://statistics.data.gov.uk/id/local-authority/30UE,Business Support,1095,Commercial Services,Gas,20014,Energy Costs,5006,1/1/20 to 31/1/20,21/02/2020,0144443,480.56,Revenue,Gazprom Energy,56502,,
Chorley Borough Council,http://statistics.data.gov.uk/id/local-authority/30UE,Capital,Capital,Early Intervention,Main Contractor,03007,Capital Expenditure,Capital,Tree Constraints Report/Arboricultural Impact Assessment with tree protection to BS 5837:2012 at King George V Playing Fields. ,12/02/2020,0144387,395.00,Capital,Godwin�s Arboricultural Ltd,62966,,
Chorley Borough Council,http://statistics.data.gov.uk/id/local-authority/30UE,Central Support Services,1009,Early Intervention,Professional Fees,40063,Services,5027,Professional Fees; Consultant and QS Services.,12/02/2020,0144335,"3,412.50",Revenue,Gosling Construction Services,78380,,
Chorley Borough Council,http://statistics.data.gov.uk/id/local-authority/30UE,Central Support Services,1009,Early Intervention,Professional Fees,40063,Services,5027,Professional Fees; Consultant and QS Services.,14/02/2020,0144336,"1,787.50",Revenue,Gosling Construction Services,78380,,
Chorley Borough Council,http://statistics.data.gov.uk/id/local-authority/30UE,Central Support Services,1009,Customer & Digital,Vandalism Repairs,20005,Repairs Maintenance & Alts,5005,Graffiti removal contract 6 months November 19 - May 20,26/02/2020,0144254,840.00,Revenue,Graffiti Away Ltd,78340,,
Chorley Borough Council,http://statistics.data.gov.uk/id/local-authority/30UE,Business Support,1095,Commercial Services,Promotional Expenses,40159,Miscellaneous Expenses,5034,"To supply the following: 750 single red wooden roses, 10 Value manuscript book A4 feint ruled ",05/02/2020,0144163,315.00,Revenue,Grafton Projects Limited,76545,,
Chorley Borough Council,http://statistics.data.gov.uk/id/local-authority/30UE,Economic Development,1096,Commercial Services,Miscellaneous Expenses,40200,Miscellaneous Expenses,5034,Installation of external light at Booths as per email 16/1/2020 to NAME REDACTED 430 +VAT,05/02/2020,0144213,430.00,Revenue,Greenway Electrical Ltd,78465,,
Chorley Borough Council,http://statistics.data.gov.uk/id/local-authority/30UE,Business Support,1095,Commercial Services,External Contractor,40198,Miscellaneous Expenses,5034,Winter Gritting/snow clearance for 2019/20 season Market Walk Existing Area - 4751 Market Walk New Area - 3641 Tot 8392,21/02/2020,0144703,"1,633.20",Revenue,Ground Control Limited,78503,,
Chorley Borough Council,http://statistics.data.gov.uk/id/local-authority/30UE,Business Support,1095,Commercial Services,External Contractor,40198,Miscellaneous Expenses,5034,Winter Gritting/snow clearance for 2019/20 season Market Walk Existing Area - 4751 Market Walk New Area - 3641 Tot 8392,21/02/2020,0144704,"1,633.20",Revenue,Ground Control Limited,78503,,
Chorley Borough Council,http://statistics.data.gov.uk/id/local-authority/30UE,Business Support,1095,Commercial Services,External Contractor,40198,Miscellaneous Expenses,5034,Winter Gritting/snow clearance for 2019/20 season Market Walk Existing Area - 4751 Market Walk New Area - 3641 Tot 8392,21/02/2020,0144707,"1,633.20",Revenue,Ground Control Limited,78503,,
Chorley Borough Council,http://statistics.data.gov.uk/id/local-authority/30UE,Homelessness,1075,Early Intervention,Miscellaneous Expenses,40200,Miscellaneous Expenses,5034,Tutor for Art Therapy Group 9 Sessions,07/02/2020,0144131,300.00,Revenue,Hannah Cobb,78480,,
Chorley Borough Council,http://statistics.data.gov.uk/id/local-authority/30UE,Central Support Services,1009,Commercial Services,Operational Employees Salaries,10000,Direct Employee Expenses,5001,Fees for NAME REDACTED is 6000 + VAT,12/02/2020,0143025,"6,000.00",Revenue,Hays Senior Finance,20078,,
Chorley Borough Council,http://statistics.data.gov.uk/id/local-authority/30UE,Homelessness,1075,Early Intervention,Service Fees,40056,Services,5027,"Provision of homeless prevention and support services to assist housing solutions team, per SLA, for 01/04/2019 to 31/03/2019",14/02/2020,0144458,"5,000.00",Revenue,Help The Homeless (Chorley),16716,,
Chorley Borough Council,http://statistics.data.gov.uk/id/local-authority/30UE,Capital,Capital,Policy & Governance,Other Expenses,03030,Capital Expenditure,Capital,Legal services in respect of the Market Walk Extension from 25/10/2018 - 08/01/2019,07/02/2020,0143806,"8,867.38",Capital,Hill Dickinson LLP,62638,,
Chorley Borough Council,http://statistics.data.gov.uk/id/local-authority/30UE,Business Support,1095,Commercial Services,Building Services Maintenance Other,20076,Fixtures and Fittings,5010,Fire Engineering Consultancy,12/02/2020,0144359,"1,500.00",Revenue,Hoare Lea LLP,78513,,
Chorley Borough Council,http://statistics.data.gov.uk/id/local-authority/30UE,Planning Policy,1092,Early Intervention,Training Course Fees,17010,Indirect Employee Expenses,5002,Training course for NAME REDACTED ` Developing local affordable housing`. Course date 19.02.20,12/02/2020,0144241,259.00,Revenue,HQN Ltd,76312,,
Chorley Borough Council,http://statistics.data.gov.uk/id/local-authority/30UE,Central Support Services,1009,Customer & Digital,Telephones - Other,40085,Communication and Computing,5028,Hybrit SIP Charges January 2020,28/02/2020,0144034,390.00,Revenue,Hybrit LLP,77925,,
Chorley Borough Council,http://statistics.data.gov.uk/id/local-authority/30UE,Corporate Management,1008,Policy & Governance,Other Fees,40212,Miscellaneous Expenses,5034,Subsidy for the provision of a meals on wheels service in Chorley  up to 2 Feb 2020,12/02/2020,0144326,"1,762.50",Revenue,I Care GB Ltd,77247,,
Chorley Borough Council,http://statistics.data.gov.uk/id/local-authority/30UE,Capital,Capital,Early Intervention,Other Expenses,03030,Capital Expenditure,Capital,Extra fencing to screen Armco barrier on cinema end of the service road nearest the footpath. To be carried out asap,05/02/2020,0144199,"1,012.98",Capital,I P Jones Fencing,21894,,
Chorley Borough Council,http://statistics.data.gov.uk/id/local-authority/30UE,Planning Policy,1092,Early Intervention,Consultants` Fees,40077,Services,5027,force through per NAMES REDACTED,12/02/2020,0144162,"1,000.00",Revenue,Iceni Projects Ltd,77968,,
Chorley Borough Council,http://statistics.data.gov.uk/id/local-authority/30UE,Other Short Term Creditors,,Policy & Governance,General Balances,00100,Balance Sheet,Balance,income tax,21/02/2020,0144702,"10,232.00",Revenue,Inland Revenue REF REDACTED,77147,,
Chorley Borough Council,http://statistics.data.gov.uk/id/local-authority/30UE,Unapportionable Central OHeads,1009,Commercial Services,Planned Maintenance,20006,Repairs Maintenance & Alts,5005,EPC - ADDRESS REDACTED,05/02/2020,0144198,396.00,Revenue,Inprova Energy Ltd,77722,,
Chorley Borough Council,http://statistics.data.gov.uk/id/local-authority/30UE,Economic Development,1096,Commercial Services,Publicity - Advertising,40157,Miscellaneous Expenses,5034,As per request from NAME REDACTED for a two-page advert in the Pulse Newspaper for Chorley Markets,12/02/2020,0144422,350.00,Revenue,Investors in Publishing,21455,,
Chorley Borough Council,http://statistics.data.gov.uk/id/local-authority/30UE,Business Support,1095,Commercial Services,Refuse Collection,20037,Cleaning and Domestic Supplies,5012,Waste Compactor Rental Services @ 270 per month for 01 April 2019 - 31 March 2020,12/02/2020,0144423,270.00,Revenue,J&H Rentals Limited,70699,,
Chorley Borough Council,http://statistics.data.gov.uk/id/local-authority/30UE,Service Management & Support,1009,Customer & Digital,Vehicles and Plant Operating Lease,30029,Contrct Hire & Operating Lease,5018,End of Lease Repairs & Transport costs VIN REDACTED,19/02/2020,0144483,383.00,Revenue,Jcb Finance Ltd,17684,,
Chorley Borough Council,http://statistics.data.gov.uk/id/local-authority/30UE,Service Management & Support,1009,Customer & Digital,Vehicles and Plant Operating Lease,30029,Contrct Hire & Operating Lease,5018,End of Lease Repairs & Transport Costs VIN REDACTED,19/02/2020,0144483,333.00,Revenue,Jcb Finance Ltd,17684,,
Chorley Borough Council,http://statistics.data.gov.uk/id/local-authority/30UE,Service Management & Support,1009,Customer & Digital,Vehicles and Plant Operating Lease,30029,Contrct Hire & Operating Lease,5018,End of Lease Repairs & Transport Costs VIN REDACTED,19/02/2020,0144483,234.00,Revenue,Jcb Finance Ltd,17684,,
Chorley Borough Council,http://statistics.data.gov.uk/id/local-authority/30UE,Service Management & Support,1009,Customer & Digital,Supplies-Grounds Maintenance,40025,"Equipment, Furniture & Materia",5023,1 pallet of ultra crete,05/02/2020,0143957,279.30,Revenue,Jewsons Limited,17844,,
Chorley Borough Council,http://statistics.data.gov.uk/id/local-authority/30UE,Service Management & Support,1009,Customer & Digital,Supplies-Grounds Maintenance,40025,"Equipment, Furniture & Materia",5023,Supply 4 x 2.1m Non drop Christmas trees with plastic bases Supply 2 x 10ft Non drop Christmas trees with metal bases,07/02/2020,0143786,407.67,Revenue,John H Mayor & Sons Ltd,16635,,
Chorley Borough Council,http://statistics.data.gov.uk/id/local-authority/30UE,Service Management & Support,1009,Customer & Digital,Supplies-Grounds Maintenance,40025,"Equipment, Furniture & Materia",5023,20 lengths of 3.6m x 200mm x 50mm green timber,05/02/2020,0143789,259.20,Revenue,John H Mayor & Sons Ltd,16635,,
Chorley Borough Council,http://statistics.data.gov.uk/id/local-authority/30UE,Service Management & Support,1009,Customer & Digital,Supplies-Grounds Maintenance,40025,"Equipment, Furniture & Materia",5023,16 x 100mm x 100mm x 1.8  wooden posts 40 x 88x38 x3.6 wooden rails,19/02/2020,0144406,276.88,Revenue,John H Mayor & Sons Ltd,16635,,
Chorley Borough Council,http://statistics.data.gov.uk/id/local-authority/30UE,Development Control,1091,Customer & Digital,Statutory Notices,40160,Miscellaneous Expenses,5034,Planning Public Notices to appear in the Chorley Guardian April 2019 to March 2020,14/02/2020,0143684,454.48,Revenue,JPI Media - Johnston Publishing Ltd,20072,,
Chorley Borough Council,http://statistics.data.gov.uk/id/local-authority/30UE,Capital,Capital,Early Intervention,Grants,03002,Capital Expenditure,Capital,,14/02/2020,0144467,"12,025.00",Capital,K Berry Ltd,16421,,
Chorley Borough Council,http://statistics.data.gov.uk/id/local-authority/30UE,Democratic Represent and  Mgnt,1007,Policy & Governance,Mayoral Hospitality,40123,Expenses,5030,Balance of fee for entertainment at the Mayor`s Charity Ball on 14th February 2020.,26/02/2020,0144632,400.00,Revenue,Kash.SJBLimited,78455,,
Chorley Borough Council,http://statistics.data.gov.uk/id/local-authority/30UE,Economic Development,1096,Commercial Services,Protective Clothing,40040,"Clothing, Uniforms and Laundry",5025,"3 x Patrol Shirts size 4XL (red/black), 1 x Patrol Softshell size 4XL (yellow), 1 x Ambassador 11 jacket 3XL (yellow), 5 x logo LB",05/02/2020,0144002,337.15,Revenue,Keltic Clothing,21988,,
Chorley Borough Council,http://statistics.data.gov.uk/id/local-authority/30UE,Control Accounts,Control,Policy & Governance,General Balances,00100,Balance Sheet,Balance,Monthly Deductions from Expenses,21/02/2020,0144746,"1,407.62",Revenue,Labour Councillors Association,17577,,
Chorley Borough Council,http://statistics.data.gov.uk/id/local-authority/30UE,Precepts and Collection Fund,Precepts,Policy & Governance,LCC Precept,02009,Precepts & Collection Fund,Precept,LCC CTAX precept,19/02/2020,0142651,"5,044,969.00",Revenue,Lancashire County Council,18386,,
Chorley Borough Council,http://statistics.data.gov.uk/id/local-authority/30UE,Collection Fund Revenue Accoun,,Policy & Governance,NNDR County Share,02036,Precepts & Collection Fund,Precept,LCC BUS RATES preecpt,19/02/2020,0142651,"422,163.00",Revenue,Lancashire County Council,18386,,
Chorley Borough Council,http://statistics.data.gov.uk/id/local-authority/30UE,Precepts and Collection Fund,Precepts,Policy & Governance,LCC Precept,02009,Precepts & Collection Fund,Precept,lcc council tax precepts,19/02/2020,0143558,"5,044,969.00",Revenue,Lancashire County Council,18386,,
Chorley Borough Council,http://statistics.data.gov.uk/id/local-authority/30UE,Collection Fund Revenue Accoun,,Policy & Governance,NNDR County Share,02036,Precepts & Collection Fund,Precept,lcc business rates precepts,19/02/2020,0143558,"422,163.00",Revenue,Lancashire County Council,18386,,
Chorley Borough Council,http://statistics.data.gov.uk/id/local-authority/30UE,Corporate Management,1008,Policy & Governance,Other Contributions,40145,Grants and Subscriptions,5031,For the provision of the 109A/ 24A/ 6A bus services from 1 April 2019 to 31 March 2020,05/02/2020,0144003,"20,244.75",Revenue,Lancashire County Council,17758,,
Chorley Borough Council,http://statistics.data.gov.uk/id/local-authority/30UE,Corporate Management,1008,Policy & Governance,Other Contributions,40145,Grants and Subscriptions,5031,For the provision of the 109A/ 24A/ 6A bus services from 1 April 2019 to 31 March 2020,07/02/2020,0144293,"14,552.56",Revenue,Lancashire County Council,17758,,
Chorley Borough Council,http://statistics.data.gov.uk/id/local-authority/30UE,Precepts and Collection Fund,Precepts,Policy & Governance,LCC Precept,02009,Precepts & Collection Fund,Precept,,19/02/2020,0144351,"5,044,969.00",Revenue,Lancashire County Council,18386,,
Chorley Borough Council,http://statistics.data.gov.uk/id/local-authority/30UE,Collection Fund Revenue Accoun,,Policy & Governance,NNDR County Share,02036,Precepts & Collection Fund,Precept,,19/02/2020,0144351,"422,163.00",Revenue,Lancashire County Council,18386,,
Chorley Borough Council,http://statistics.data.gov.uk/id/local-authority/30UE,Capital,Capital,Early Intervention,Grants,03002,Capital Expenditure,Capital,ADDRESS REDACTED,14/02/2020,0144456,"3,019.00",Capital,Lancashire County Council,17758,,
Chorley Borough Council,http://statistics.data.gov.uk/id/local-authority/30UE,Capital,Capital,Early Intervention,Grants,03002,Capital Expenditure,Capital,ADDRESS REDACTED,14/02/2020,0144468,"1,384.65",Capital,Lancashire County Council,17758,,
Chorley Borough Council,http://statistics.data.gov.uk/id/local-authority/30UE,Capital,Capital,Early Intervention,Grants,03002,Capital Expenditure,Capital,ADDRESS REDACTED,14/02/2020,0144469,"4,670.00",Capital,Lancashire County Council,17758,,
Chorley Borough Council,http://statistics.data.gov.uk/id/local-authority/30UE,Capital,Capital,Early Intervention,Grants,03002,Capital Expenditure,Capital,ADDRESS REDACTED,14/02/2020,0144470,"5,948.00",Capital,Lancashire County Council,17758,,
Chorley Borough Council,http://statistics.data.gov.uk/id/local-authority/30UE,Capital,Capital,Early Intervention,Grants,03002,Capital Expenditure,Capital,ADDRESS REDACTED,14/02/2020,0144471,"6,498.00",Capital,Lancashire County Council,17758,,
Chorley Borough Council,http://statistics.data.gov.uk/id/local-authority/30UE,Capital,Capital,Commercial Services,Grants,03002,Capital Expenditure,Capital,ADDRESS REDACTED,28/02/2020,0144660,"3,884.00",Capital,Lancashire County Council,17758,,
Chorley Borough Council,http://statistics.data.gov.uk/id/local-authority/30UE,Capital,Capital,Early Intervention,Grants,03002,Capital Expenditure,Capital,ADDRESS REDACTED,21/02/2020,0144661,"6,911.00",Capital,Lancashire County Council,17758,,
Chorley Borough Council,http://statistics.data.gov.uk/id/local-authority/30UE,Capital,Capital,Early Intervention,Grants,03002,Capital Expenditure,Capital,ADDRESS REDACTED,21/02/2020,0144708,"7,135.00",Capital,Lancashire County Council,17758,,
Chorley Borough Council,http://statistics.data.gov.uk/id/local-authority/30UE,Capital,Capital,Early Intervention,Grants,03002,Capital Expenditure,Capital,ADDRESS REDACTED,28/02/2020,0144774,"4,052.00",Capital,Lancashire County Council,17758,,
Chorley Borough Council,http://statistics.data.gov.uk/id/local-authority/30UE,Capital,Capital,Early Intervention,Grants,03002,Capital Expenditure,Capital,ADDRESS REDACTED,28/02/2020,0144775,"2,879.85",Capital,Lancashire County Council,17758,,
Chorley Borough Council,http://statistics.data.gov.uk/id/local-authority/30UE,Capital,Capital,Early Intervention,Grants,03002,Capital Expenditure,Capital,ADDRESS REDACTED,28/02/2020,0144776,"3,672.50",Capital,Lancashire County Council,17758,,
Chorley Borough Council,http://statistics.data.gov.uk/id/local-authority/30UE,Central Support Services,1009,Early Intervention,Miscellaneous Expenses,40200,Miscellaneous Expenses,5034,Third Party contribution to Project - The Meadows Play Equipment,05/02/2020,0144249,"2,200.00",Revenue,Lancashire Environmental Fund,75440,,
Chorley Borough Council,http://statistics.data.gov.uk/id/local-authority/30UE,Other Short Term Creditors,,Policy & Governance,General Balances,00100,Balance Sheet,Balance,EE`s Contributions,19/02/2020,0135280,"42,027.98",Revenue,Lancashire Pensions Services DD ONLY,16696,,
Chorley Borough Council,http://statistics.data.gov.uk/id/local-authority/30UE,Other Short Term Creditors,,Policy & Governance,General Balances,00100,Balance Sheet,Balance,ER`s Contributions,19/02/2020,0135280,"93,388.35",Revenue,Lancashire Pensions Services DD ONLY,16696,,
Chorley Borough Council,http://statistics.data.gov.uk/id/local-authority/30UE,Unapportionable Central OHeads,1009,Policy & Governance,Pensions Deficit Recovery Contributions,12003,Direct Employee Expenses,5001,Deficit,19/02/2020,0135280,"70,041.67",Revenue,Lancashire Pensions Services DD ONLY,16696,,
Chorley Borough Council,http://statistics.data.gov.uk/id/local-authority/30UE,Other Short Term Creditors,,Policy & Governance,General Balances,00100,Balance Sheet,Balance,EE`s contributions,19/02/2020,0142572,"45,710.01",Revenue,Lancashire Pensions Services DD ONLY,16696,,
Chorley Borough Council,http://statistics.data.gov.uk/id/local-authority/30UE,Other Short Term Creditors,,Policy & Governance,General Balances,00100,Balance Sheet,Balance,ER`s contributions,19/02/2020,0142572,"101,817.32",Revenue,Lancashire Pensions Services DD ONLY,16696,,
Chorley Borough Council,http://statistics.data.gov.uk/id/local-authority/30UE,Unapportionable Central OHeads,1009,Policy & Governance,Pensions Deficit Recovery Contributions,12003,Direct Employee Expenses,5001,deficit,19/02/2020,0142572,"80,525.00",Revenue,Lancashire Pensions Services DD ONLY,16696,,
Chorley Borough Council,http://statistics.data.gov.uk/id/local-authority/30UE,Unapportionable Central OHeads,1009,Policy & Governance,Pensions Increase Act Payments,18005,Indirect Employee Expenses,5002,cay october,19/02/2020,0143142,"17,465.19",Revenue,Lancashire Pensions Services DD ONLY,16696,,
Chorley Borough Council,http://statistics.data.gov.uk/id/local-authority/30UE,Unapportionable Central OHeads,1009,Policy & Governance,Pensions Increase Act Payments,18005,Indirect Employee Expenses,5002,cay sept 19,19/02/2020,0143143,"17,666.68",Revenue,Lancashire Pensions Services DD ONLY,16696,,
Chorley Borough Council,http://statistics.data.gov.uk/id/local-authority/30UE,Other Short Term Creditors,,Policy & Governance,General Balances,00100,Balance Sheet,Balance,EE`s contributions,19/02/2020,0143330,"46,874.41",Revenue,Lancashire Pensions Services DD ONLY,16696,,
Chorley Borough Council,http://statistics.data.gov.uk/id/local-authority/30UE,Other Short Term Creditors,,Policy & Governance,General Balances,00100,Balance Sheet,Balance,ER`s contributions,19/02/2020,0143330,"104,350.19",Revenue,Lancashire Pensions Services DD ONLY,16696,,
Chorley Borough Council,http://statistics.data.gov.uk/id/local-authority/30UE,Unapportionable Central OHeads,1009,Policy & Governance,Pensions Deficit Recovery Contributions,12003,Direct Employee Expenses,5001,deficit,19/02/2020,0143330,"80,525.00",Revenue,Lancashire Pensions Services DD ONLY,16696,,
Chorley Borough Council,http://statistics.data.gov.uk/id/local-authority/30UE,Unapportionable Central OHeads,1009,Policy & Governance,Pensions Increase Act Payments,18005,Indirect Employee Expenses,5002,cay november 19,19/02/2020,0143542,"17,429.28",Revenue,Lancashire Pensions Services DD ONLY,16696,,
Chorley Borough Council,http://statistics.data.gov.uk/id/local-authority/30UE,Other Short Term Creditors,,Policy & Governance,General Balances,00100,Balance Sheet,Balance,EE`s contributions,19/02/2020,0143813,"46,461.45",Revenue,Lancashire Pensions Services DD ONLY,16696,,
Chorley Borough Council,http://statistics.data.gov.uk/id/local-authority/30UE,Other Short Term Creditors,,Policy & Governance,General Balances,00100,Balance Sheet,Balance,ER`s contributions,19/02/2020,0143813,"103,740.76",Revenue,Lancashire Pensions Services DD ONLY,16696,,
Chorley Borough Council,http://statistics.data.gov.uk/id/local-authority/30UE,Unapportionable Central OHeads,1009,Policy & Governance,Pensions Deficit Recovery Contributions,12003,Direct Employee Expenses,5001,deficit,19/02/2020,0143813,"80,525.00",Revenue,Lancashire Pensions Services DD ONLY,16696,,
Chorley Borough Council,http://statistics.data.gov.uk/id/local-authority/30UE,Development Control,1091,Policy & Governance,Pensions Increase Act Payments,18005,Indirect Employee Expenses,5002,pension strain - Dec 19,19/02/2020,0144559,"77,549.52",Revenue,Lancashire Pensions Services DD ONLY,16696,,
Chorley Borough Council,http://statistics.data.gov.uk/id/local-authority/30UE,Precepts and Collection Fund,Precepts,Policy & Governance,LCFA Precept,02011,Precepts & Collection Fund,Precept,,19/02/2020,0144350,"260,330.00",Revenue,Lancs Combined Fire Authority,17768,,
Chorley Borough Council,http://statistics.data.gov.uk/id/local-authority/30UE,Collection Fund Revenue Accoun,,Policy & Governance,NNDR Fire Share,02037,Precepts & Collection Fund,Precept,,19/02/2020,0144350,"36,052.00",Revenue,Lancs Combined Fire Authority,17768,,
Chorley Borough Council,http://statistics.data.gov.uk/id/local-authority/30UE,Corporate Management,1008,Customer & Digital,General Subscriptions,40146,Grants and Subscriptions,5031,Chorley Council : �LARAC Membership fees 2020-21�,26/02/2020,0144709,445.00,Revenue,Larac,16550,,
Chorley Borough Council,http://statistics.data.gov.uk/id/local-authority/30UE,Democratic Represent and  Mgnt,1007,Policy & Governance,Car Leasing Payment,14100,Direct Employee Expenses,5001,VIN REDACTED,28/02/2020,0144799,"4,152.69",Revenue,LeasePlan UK Ltd T/A Automotive Leasing,65197,,
Chorley Borough Council,http://statistics.data.gov.uk/id/local-authority/30UE,Democratic Represent and  Mgnt,1007,Policy & Governance,Car Leasing Payment,14100,Direct Employee Expenses,5001,vat,28/02/2020,0144799,388.67,Revenue,LeasePlan UK Ltd T/A Automotive Leasing,65197,,
Chorley Borough Council,http://statistics.data.gov.uk/id/local-authority/30UE,Control Accounts,Control,Policy & Governance,Manual Control Account,00001,Balance Sheet,Balance,-vat,28/02/2020,0144799,-388.67,Revenue,LeasePlan UK Ltd T/A Automotive Leasing,65197,,
Chorley Borough Council,http://statistics.data.gov.uk/id/local-authority/30UE,Corporate Management,1008,Policy & Governance,Car Leasing Payment,14100,Direct Employee Expenses,5001,VIN REDACTED,28/02/2020,0144800,280.86,Revenue,LeasePlan UK Ltd T/A Automotive Leasing,65197,,
Chorley Borough Council,http://statistics.data.gov.uk/id/local-authority/30UE,Corporate Management,1008,Policy & Governance,Car Leasing Payment,14100,Direct Employee Expenses,5001,vat,28/02/2020,0144800,25.02,Revenue,LeasePlan UK Ltd T/A Automotive Leasing,65197,,
Chorley Borough Council,http://statistics.data.gov.uk/id/local-authority/30UE,Control Accounts,Control,Policy & Governance,Manual Control Account,00001,Balance Sheet,Balance,-vat,28/02/2020,0144800,-25.02,Revenue,LeasePlan UK Ltd T/A Automotive Leasing,65197,,
Chorley Borough Council,http://statistics.data.gov.uk/id/local-authority/30UE,Economic Development,1096,Commercial Services,Training Course Fees,17010,Indirect Employee Expenses,5002,University Fees for NAME REDACTED,21/02/2020,0144662,661.00,Revenue,Leeds Beckett University,78518,,
Chorley Borough Council,http://statistics.data.gov.uk/id/local-authority/30UE,Business Support,1095,Commercial Services,Grants To Other Organisations,40127,Grants and Subscriptions,5031,shop front 30-32 market street,21/02/2020,0144524,"10,000.00",Revenue,Leo Taverns Ltd,78494,,
Chorley Borough Council,http://statistics.data.gov.uk/id/local-authority/30UE,Unapportionable Central OHeads,1009,Policy & Governance,HR Approved Occ Health Fees,15201,Indirect Employee Expenses,5002,Counselling sessions for staff during January 2020,26/02/2020,0144604,520.00,Revenue,Livewell Counselling Service,63084,,
Chorley Borough Council,http://statistics.data.gov.uk/id/local-authority/30UE,Community Development,1097,Policy & Governance,Grants To Other Organisations,40127,Grants and Subscriptions,5031,Support for the Living Waters Storehouse food provision contract,28/02/2020,0144550,"7,500.00",Revenue,Living Waters Storehouse,60925,,
Chorley Borough Council,http://statistics.data.gov.uk/id/local-authority/30UE,Unapportionable Central OHeads,1009,Policy & Governance,Publicity - Advertising,40157,Miscellaneous Expenses,5034,Christmas Advert in Local Life magazine.,07/02/2020,0144130,335.00,Revenue,Local Life 247 Ltd.,63624,,
Chorley Borough Council,http://statistics.data.gov.uk/id/local-authority/30UE,Unapportionable Central OHeads,1009,Chief Executive,Stationery,40050,"Printing, Stationery & General",5026,PK10 LYRECO BUDGET STORAGE BOXES,21/02/2020,0144488,5.21,Revenue,Lyreco UK Ltd,17623,,
Chorley Borough Council,http://statistics.data.gov.uk/id/local-authority/30UE,Unapportionable Central OHeads,1009,Chief Executive,Stationery,40050,"Printing, Stationery & General",5026,LYRECO MULTI-PURPOSE WHITE LABELS 99.1 X 67.7MM - BOX OF 800 (WITH SELVEDGE),21/02/2020,0144488,2.11,Revenue,Lyreco UK Ltd,17623,,
Chorley Borough Council,http://statistics.data.gov.uk/id/local-authority/30UE,Unapportionable Central OHeads,1009,Chief Executive,Stationery,40050,"Printing, Stationery & General",5026,LYRECO 2B PENCILS - BOX OF 12,21/02/2020,0144488,0.32,Revenue,Lyreco UK Ltd,17623,,
Chorley Borough Council,http://statistics.data.gov.uk/id/local-authority/30UE,Homelessness,1075,Chief Executive,Furniture - Purchase,40012,"Equipment, Furniture & Materia",5023,Footrest,21/02/2020,0144488,23.33,Revenue,Lyreco UK Ltd,17623,,
Chorley Borough Council,http://statistics.data.gov.uk/id/local-authority/30UE,Unapportionable Central OHeads,1009,Chief Executive,Stationery,40050,"Printing, Stationery & General",5026,Lyreco White 8 X 5Inch Shorthand Notebooks (Ruled) - Pack Of 10 (10X150 Sheets),21/02/2020,0144488,11.20,Revenue,Lyreco UK Ltd,17623,,
Chorley Borough Council,http://statistics.data.gov.uk/id/local-authority/30UE,Unapportionable Central OHeads,1009,Chief Executive,Stationery,40050,"Printing, Stationery & General",5026,Lyreco  Hard Back Twin Wire Notebook A5 - Pack Of 5,21/02/2020,0144488,6.00,Revenue,Lyreco UK Ltd,17623,,
Chorley Borough Council,http://statistics.data.gov.uk/id/local-authority/30UE,Unapportionable Central OHeads,1009,Chief Executive,Stationery,40050,"Printing, Stationery & General",5026,LYRECO REPO NOTES 76X76MM 100SHT YLLW,21/02/2020,0144488,1.44,Revenue,Lyreco UK Ltd,17623,,
Chorley Borough Council,http://statistics.data.gov.uk/id/local-authority/30UE,Unapportionable Central OHeads,1009,Chief Executive,Stationery,40050,"Printing, Stationery & General",5026,Micron Stick Ball Point,21/02/2020,0144488,1.50,Revenue,Lyreco UK Ltd,17623,,
Chorley Borough Council,http://statistics.data.gov.uk/id/local-authority/30UE,Unapportionable Central OHeads,1009,Chief Executive,Stationery,40050,"Printing, Stationery & General",5026,Bostik Blu Tak - Economy 121G Pack,21/02/2020,0144488,1.42,Revenue,Lyreco UK Ltd,17623,,
Chorley Borough Council,http://statistics.data.gov.uk/id/local-authority/30UE,Unapportionable Central OHeads,1009,Chief Executive,Stationery,40050,"Printing, Stationery & General",5026,4340HP Black Ink Cartridge 953,21/02/2020,0144488,72.78,Revenue,Lyreco UK Ltd,17623,,
Chorley Borough Council,http://statistics.data.gov.uk/id/local-authority/30UE,Unapportionable Central OHeads,1009,Chief Executive,Stationery,40050,"Printing, Stationery & General",5026,HP Magenta Ink Cartridge 953,21/02/2020,0144488,53.31,Revenue,Lyreco UK Ltd,17623,,
Chorley Borough Council,http://statistics.data.gov.uk/id/local-authority/30UE,Unapportionable Central OHeads,1009,Chief Executive,Stationery,40050,"Printing, Stationery & General",5026,HP Blue Ink Cartridge 953,21/02/2020,0144488,53.31,Revenue,Lyreco UK Ltd,17623,,
Chorley Borough Council,http://statistics.data.gov.uk/id/local-authority/30UE,Unapportionable Central OHeads,1009,Chief Executive,Stationery,40050,"Printing, Stationery & General",5026,HP Yellow Ink Cartridge 953,21/02/2020,0144488,53.31,Revenue,Lyreco UK Ltd,17623,,
Chorley Borough Council,http://statistics.data.gov.uk/id/local-authority/30UE,Unapportionable Central OHeads,1009,Chief Executive,Stationery,40050,"Printing, Stationery & General",5026,LYRECO REPO NOTES 127X76MM 100SHT YLLW,21/02/2020,0144488,2.16,Revenue,Lyreco UK Ltd,17623,,
Chorley Borough Council,http://statistics.data.gov.uk/id/local-authority/30UE,Unapportionable Central OHeads,1009,Chief Executive,Stationery,40050,"Printing, Stationery & General",5026,box 25 DVD printable,21/02/2020,0144488,51.48,Revenue,Lyreco UK Ltd,17623,,
Chorley Borough Council,http://statistics.data.gov.uk/id/local-authority/30UE,Unapportionable Central OHeads,1009,Chief Executive,Stationery,40050,"Printing, Stationery & General",5026,2.182.763 PK25 FELLOWES  CD SLIM CASES BLACK,21/02/2020,0144488,10.80,Revenue,Lyreco UK Ltd,17623,,
Chorley Borough Council,http://statistics.data.gov.uk/id/local-authority/30UE,Unapportionable Central OHeads,1009,Chief Executive,Stationery,40050,"Printing, Stationery & General",5026,Lyreco Budget Cloud-Finish Foolscap Box File,21/02/2020,0144488,4.38,Revenue,Lyreco UK Ltd,17623,,
Chorley Borough Council,http://statistics.data.gov.uk/id/local-authority/30UE,Unapportionable Central OHeads,1009,Chief Executive,Stationery,40050,"Printing, Stationery & General",5026,A-Z Guide Cards,21/02/2020,0144488,2.58,Revenue,Lyreco UK Ltd,17623,,
Chorley Borough Council,http://statistics.data.gov.uk/id/local-authority/30UE,Unapportionable Central OHeads,1009,Chief Executive,Computer Consumables,40099,Communication and Computing,5028,HP Officejet Toner No 951 - Yellow,21/02/2020,0144488,22.67,Revenue,Lyreco UK Ltd,17623,,
Chorley Borough Council,http://statistics.data.gov.uk/id/local-authority/30UE,Unapportionable Central OHeads,1009,Chief Executive,Stationery,40050,"Printing, Stationery & General",5026,Ink Cartridge Magenta,21/02/2020,0144488,22.67,Revenue,Lyreco UK Ltd,17623,,
Chorley Borough Council,http://statistics.data.gov.uk/id/local-authority/30UE,Service Management & Support,1009,Customer & Digital,Grounds Maintenance Contractor,20043,Grounds Maintenance Costs,5013,Walker`s Tree Services invoice,28/02/2020,0144791,"4,110.00",Revenue,M J Walker,62044,,
Chorley Borough Council,http://statistics.data.gov.uk/id/local-authority/30UE,Capital,Capital,Early Intervention,Grants,03002,Capital Expenditure,Capital,,14/02/2020,0144454,"6,090.00",Capital,M.J Park Building Contractors,20367,,
Chorley Borough Council,http://statistics.data.gov.uk/id/local-authority/30UE,Other Long Term Debtors,,Commercial Services,Other Debtors,00098,Balance Sheet,Balance,Legal fee in relation to the deed of variation,19/02/2020,0144636,"2,000.00",Revenue,Marks and Spencer plc,78267,,
Chorley Borough Council,http://statistics.data.gov.uk/id/local-authority/30UE,Capital,Capital,Customer & Digital,Equipment,03014,Capital Expenditure,Capital,Lids to fit 240 litre wheeled bin. Colour : GREEN Quantity : 100,28/02/2020,0144161,495.00,Capital,MGB Plastics Ltd,18624,,
Chorley Borough Council,http://statistics.data.gov.uk/id/local-authority/30UE,Collection Fund Revenue Accoun,,Policy & Governance,Transitional Protection,02033,Precepts & Collection Fund,Precept,trans protn contributions,19/02/2020,0144129,"21,943.00",Revenue,Ministry of Housing Communities & Local Government,16280,,
Chorley Borough Council,http://statistics.data.gov.uk/id/local-authority/30UE,Collection Fund Revenue Accoun,,Policy & Governance,NNDR Central Share,02034,Precepts & Collection Fund,Precept,central share BR,19/02/2020,0144129,"488,488.00",Revenue,Ministry of Housing Communities & Local Government,16280,,
Chorley Borough Council,http://statistics.data.gov.uk/id/local-authority/30UE,Collection Fund Revenue Accoun,,Policy & Governance,NNDR Central Share,02034,Precepts & Collection Fund,Precept,deficit coll fund,19/02/2020,0144129,"-23,396.00",Revenue,Ministry of Housing Communities & Local Government,16280,,
Chorley Borough Council,http://statistics.data.gov.uk/id/local-authority/30UE,Collection Fund Revenue Accoun,,Policy & Governance,Transitional Protection,02033,Precepts & Collection Fund,Precept,trans pron contri,19/02/2020,0144167,"21,944.00",Revenue,Ministry of Housing Communities & Local Government,16280,,
Chorley Borough Council,http://statistics.data.gov.uk/id/local-authority/30UE,Collection Fund Revenue Accoun,,Policy & Governance,NNDR Central Share,02034,Precepts & Collection Fund,Precept,central share BR,19/02/2020,0144167,"488,487.00",Revenue,Ministry of Housing Communities & Local Government,16280,,
Chorley Borough Council,http://statistics.data.gov.uk/id/local-authority/30UE,Collection Fund Revenue Accoun,,Policy & Governance,NNDR Central Share,02034,Precepts & Collection Fund,Precept,defecit collection fund,19/02/2020,0144167,"-23,396.00",Revenue,Ministry of Housing Communities & Local Government,16280,,
Chorley Borough Council,http://statistics.data.gov.uk/id/local-authority/30UE,Other Short Term Creditors,,Policy & Governance,Central Government Bodies-Creditors,00090,Balance Sheet,Balance,BR payments,19/02/2020,0144527,456.00,Revenue,Ministry of Housing Communities & Local Government,16280,,
Chorley Borough Council,http://statistics.data.gov.uk/id/local-authority/30UE,Capital,Capital,Early Intervention,Grants,03002,Capital Expenditure,Capital,ADDRESS REDACTED,12/02/2020,0144411,"4,390.39",Capital,Mint Northwest Ltd,65607,,
Chorley Borough Council,http://statistics.data.gov.uk/id/local-authority/30UE,Capital,Capital,Early Intervention,Grants,03002,Capital Expenditure,Capital,ADDRESS REDACTED,21/02/2020,0144664,"4,696.06",Capital,Mint Northwest Ltd,65607,,
Chorley Borough Council,http://statistics.data.gov.uk/id/local-authority/30UE,Capital,Capital,Policy & Governance,Grants,03002,Capital Expenditure,Capital,ADDRESS REDACTED,26/02/2020,0144756,"4,258.78",Capital,Mint Northwest Ltd,65607,,
Chorley Borough Council,http://statistics.data.gov.uk/id/local-authority/30UE,Central Support Services,1009,Customer & Digital,Legal Fees,40171,Miscellaneous Expenses,5034,Brief for Chorley Borough Council -v- NAME REDACTED @ Burnley Mags 23.01.2020,05/02/2020,0144215,750.00,Revenue,Miss Virginia Hayton,78353,,
Chorley Borough Council,http://statistics.data.gov.uk/id/local-authority/30UE,Private Sector HSG Renewal,1073,Early Intervention,External Contractor,40198,Miscellaneous Expenses,5034,Ref 3011,07/02/2020,0144262,111.00,Revenue,Mobility Care Services,70841,,
Chorley Borough Council,http://statistics.data.gov.uk/id/local-authority/30UE,Private Sector HSG Renewal,1073,Early Intervention,External Contractor,40198,Miscellaneous Expenses,5034,Ref 2893,07/02/2020,0144262,132.00,Revenue,Mobility Care Services,70841,,
Chorley Borough Council,http://statistics.data.gov.uk/id/local-authority/30UE,Private Sector HSG Renewal,1073,Early Intervention,External Contractor,40198,Miscellaneous Expenses,5034,Ref 2894,07/02/2020,0144262,66.00,Revenue,Mobility Care Services,70841,,
Chorley Borough Council,http://statistics.data.gov.uk/id/local-authority/30UE,Private Sector HSG Renewal,1073,Early Intervention,External Contractor,40198,Miscellaneous Expenses,5034,Ref 2895,07/02/2020,0144262,66.00,Revenue,Mobility Care Services,70841,,
Chorley Borough Council,http://statistics.data.gov.uk/id/local-authority/30UE,Private Sector HSG Renewal,1073,Early Intervention,External Contractor,40198,Miscellaneous Expenses,5034,Ref 2896,07/02/2020,0144262,66.00,Revenue,Mobility Care Services,70841,,
Chorley Borough Council,http://statistics.data.gov.uk/id/local-authority/30UE,Private Sector HSG Renewal,1073,Early Intervention,External Contractor,40198,Miscellaneous Expenses,5034,Ref 2913,07/02/2020,0144262,600.00,Revenue,Mobility Care Services,70841,,
Chorley Borough Council,http://statistics.data.gov.uk/id/local-authority/30UE,Private Sector HSG Renewal,1073,Early Intervention,External Contractor,40198,Miscellaneous Expenses,5034,Ref 2920,07/02/2020,0144262,111.00,Revenue,Mobility Care Services,70841,,
Chorley Borough Council,http://statistics.data.gov.uk/id/local-authority/30UE,Private Sector HSG Renewal,1073,Early Intervention,External Contractor,40198,Miscellaneous Expenses,5034,Ref 2921,07/02/2020,0144262,111.00,Revenue,Mobility Care Services,70841,,
Chorley Borough Council,http://statistics.data.gov.uk/id/local-authority/30UE,Private Sector HSG Renewal,1073,Early Intervention,External Contractor,40198,Miscellaneous Expenses,5034,Ref 2922,07/02/2020,0144262,66.00,Revenue,Mobility Care Services,70841,,
Chorley Borough Council,http://statistics.data.gov.uk/id/local-authority/30UE,Private Sector HSG Renewal,1073,Early Intervention,External Contractor,40198,Miscellaneous Expenses,5034,Ref 2923,07/02/2020,0144262,66.00,Revenue,Mobility Care Services,70841,,
Chorley Borough Council,http://statistics.data.gov.uk/id/local-authority/30UE,Private Sector HSG Renewal,1073,Early Intervention,External Contractor,40198,Miscellaneous Expenses,5034,Ref 2924,07/02/2020,0144262,66.00,Revenue,Mobility Care Services,70841,,
Chorley Borough Council,http://statistics.data.gov.uk/id/local-authority/30UE,Private Sector HSG Renewal,1073,Early Intervention,External Contractor,40198,Miscellaneous Expenses,5034,Ref 2939,07/02/2020,0144262,280.00,Revenue,Mobility Care Services,70841,,
Chorley Borough Council,http://statistics.data.gov.uk/id/local-authority/30UE,Private Sector HSG Renewal,1073,Early Intervention,External Contractor,40198,Miscellaneous Expenses,5034,Ref 2940,07/02/2020,0144262,128.00,Revenue,Mobility Care Services,70841,,
Chorley Borough Council,http://statistics.data.gov.uk/id/local-authority/30UE,Private Sector HSG Renewal,1073,Early Intervention,External Contractor,40198,Miscellaneous Expenses,5034,Ref 2941,07/02/2020,0144262,128.00,Revenue,Mobility Care Services,70841,,
Chorley Borough Council,http://statistics.data.gov.uk/id/local-authority/30UE,Private Sector HSG Renewal,1073,Early Intervention,External Contractor,40198,Miscellaneous Expenses,5034,Ref 2942,07/02/2020,0144262,55.00,Revenue,Mobility Care Services,70841,,
Chorley Borough Council,http://statistics.data.gov.uk/id/local-authority/30UE,Private Sector HSG Renewal,1073,Early Intervention,External Contractor,40198,Miscellaneous Expenses,5034,Ref 2944,07/02/2020,0144262,66.00,Revenue,Mobility Care Services,70841,,
Chorley Borough Council,http://statistics.data.gov.uk/id/local-authority/30UE,Private Sector HSG Renewal,1073,Early Intervention,External Contractor,40198,Miscellaneous Expenses,5034,Ref 2945,07/02/2020,0144262,66.00,Revenue,Mobility Care Services,70841,,
Chorley Borough Council,http://statistics.data.gov.uk/id/local-authority/30UE,Private Sector HSG Renewal,1073,Early Intervention,External Contractor,40198,Miscellaneous Expenses,5034,Ref 2946,07/02/2020,0144262,66.00,Revenue,Mobility Care Services,70841,,
Chorley Borough Council,http://statistics.data.gov.uk/id/local-authority/30UE,Private Sector HSG Renewal,1073,Early Intervention,External Contractor,40198,Miscellaneous Expenses,5034,Ref 2947,07/02/2020,0144262,132.00,Revenue,Mobility Care Services,70841,,
Chorley Borough Council,http://statistics.data.gov.uk/id/local-authority/30UE,Private Sector HSG Renewal,1073,Early Intervention,External Contractor,40198,Miscellaneous Expenses,5034,Ref 2953,07/02/2020,0144262,66.00,Revenue,Mobility Care Services,70841,,
Chorley Borough Council,http://statistics.data.gov.uk/id/local-authority/30UE,Private Sector HSG Renewal,1073,Early Intervention,External Contractor,40198,Miscellaneous Expenses,5034,Ref 2961,07/02/2020,0144262,66.00,Revenue,Mobility Care Services,70841,,
Chorley Borough Council,http://statistics.data.gov.uk/id/local-authority/30UE,Private Sector HSG Renewal,1073,Early Intervention,External Contractor,40198,Miscellaneous Expenses,5034,Ref 2954,07/02/2020,0144262,630.00,Revenue,Mobility Care Services,70841,,
Chorley Borough Council,http://statistics.data.gov.uk/id/local-authority/30UE,Private Sector HSG Renewal,1073,Early Intervention,External Contractor,40198,Miscellaneous Expenses,5034,Ref 2986,07/02/2020,0144262,66.00,Revenue,Mobility Care Services,70841,,
Chorley Borough Council,http://statistics.data.gov.uk/id/local-authority/30UE,Private Sector HSG Renewal,1073,Early Intervention,External Contractor,40198,Miscellaneous Expenses,5034,Ref 2976,07/02/2020,0144262,66.00,Revenue,Mobility Care Services,70841,,
Chorley Borough Council,http://statistics.data.gov.uk/id/local-authority/30UE,Private Sector HSG Renewal,1073,Early Intervention,External Contractor,40198,Miscellaneous Expenses,5034,Ref 2977,07/02/2020,0144262,128.00,Revenue,Mobility Care Services,70841,,
Chorley Borough Council,http://statistics.data.gov.uk/id/local-authority/30UE,Private Sector HSG Renewal,1073,Early Intervention,External Contractor,40198,Miscellaneous Expenses,5034,Ref 2975,07/02/2020,0144262,45.00,Revenue,Mobility Care Services,70841,,
Chorley Borough Council,http://statistics.data.gov.uk/id/local-authority/30UE,Private Sector HSG Renewal,1073,Early Intervention,External Contractor,40198,Miscellaneous Expenses,5034,Ref 2745,07/02/2020,0144262,256.00,Revenue,Mobility Care Services,70841,,
Chorley Borough Council,http://statistics.data.gov.uk/id/local-authority/30UE,Private Sector HSG Renewal,1073,Early Intervention,External Contractor,40198,Miscellaneous Expenses,5034,Ref 2989,07/02/2020,0144262,66.00,Revenue,Mobility Care Services,70841,,
Chorley Borough Council,http://statistics.data.gov.uk/id/local-authority/30UE,Private Sector HSG Renewal,1073,Early Intervention,External Contractor,40198,Miscellaneous Expenses,5034,Ref 2988,07/02/2020,0144262,111.00,Revenue,Mobility Care Services,70841,,
Chorley Borough Council,http://statistics.data.gov.uk/id/local-authority/30UE,Private Sector HSG Renewal,1073,Early Intervention,External Contractor,40198,Miscellaneous Expenses,5034,Ref 2744,07/02/2020,0144262,66.00,Revenue,Mobility Care Services,70841,,
Chorley Borough Council,http://statistics.data.gov.uk/id/local-authority/30UE,Private Sector HSG Renewal,1073,Early Intervention,External Contractor,40198,Miscellaneous Expenses,5034,Ref 3005,07/02/2020,0144262,66.00,Revenue,Mobility Care Services,70841,,
Chorley Borough Council,http://statistics.data.gov.uk/id/local-authority/30UE,Private Sector HSG Renewal,1073,Early Intervention,External Contractor,40198,Miscellaneous Expenses,5034,Ref 3004,07/02/2020,0144262,320.00,Revenue,Mobility Care Services,70841,,
Chorley Borough Council,http://statistics.data.gov.uk/id/local-authority/30UE,Private Sector HSG Renewal,1073,Early Intervention,External Contractor,40198,Miscellaneous Expenses,5034,Ref 2869,07/02/2020,0144262,132.00,Revenue,Mobility Care Services,70841,,
Chorley Borough Council,http://statistics.data.gov.uk/id/local-authority/30UE,Private Sector HSG Renewal,1073,Early Intervention,External Contractor,40198,Miscellaneous Expenses,5034,Ref 2868,07/02/2020,0144262,256.00,Revenue,Mobility Care Services,70841,,
Chorley Borough Council,http://statistics.data.gov.uk/id/local-authority/30UE,Private Sector HSG Renewal,1073,Early Intervention,External Contractor,40198,Miscellaneous Expenses,5034,Ref 3023,07/02/2020,0144262,65.00,Revenue,Mobility Care Services,70841,,
Chorley Borough Council,http://statistics.data.gov.uk/id/local-authority/30UE,Capital,Capital,Early Intervention,Grants,03002,Capital Expenditure,Capital,ADDRESS REDACTED,21/02/2020,0144665,"2,940.00",Capital,Mobility Care Services,70841,,
Chorley Borough Council,http://statistics.data.gov.uk/id/local-authority/30UE,Capital,Capital,Early Intervention,Grants,03002,Capital Expenditure,Capital,,26/02/2020,0144758,"3,120.00",Capital,Mobility Care Services,70841,,
Chorley Borough Council,http://statistics.data.gov.uk/id/local-authority/30UE,Service Management & Support,1009,Customer & Digital,Refuse Collection,20037,Cleaning and Domestic Supplies,5012,"Removal of hazardous waste from Chorley Council Depot, Bengal Street Chorley. As per : QUOTE NUMBER - 1850NWHW",26/02/2020,0144410,574.50,Revenue,Neales Waste Management,17583,,
Chorley Borough Council,http://statistics.data.gov.uk/id/local-authority/30UE,Business Support,1095,Commercial Services,Security Service,40062,Services,5027,Evening Site Security Services at Market Walk Shopping Centre from 5pm until midnight 7 days a week. ,05/02/2020,0143581,365.50,Revenue,New Concept Security Ltd,77501,,
Chorley Borough Council,http://statistics.data.gov.uk/id/local-authority/30UE,Business Support,1095,Commercial Services,Security Service,40062,Services,5027,Evening Site Security Services at Market Walk Shopping Centre from 5pm until midnight 7 days a week. ,05/02/2020,0143582,451.50,Revenue,New Concept Security Ltd,77501,,
Chorley Borough Council,http://statistics.data.gov.uk/id/local-authority/30UE,Business Support,1095,Commercial Services,Security Service,40062,Services,5027,Evening Site Security Services at Market Walk Shopping Centre from 5pm until midnight 7 days a week. ,07/02/2020,0143677,752.50,Revenue,New Concept Security Ltd,77501,,
Chorley Borough Council,http://statistics.data.gov.uk/id/local-authority/30UE,Business Support,1095,Commercial Services,Security Service,40062,Services,5027,Evening Site Security Services at Market Walk Shopping Centre from 5pm until midnight 7 days a week. ,05/02/2020,0143797,526.75,Revenue,New Concept Security Ltd,77501,,
Chorley Borough Council,http://statistics.data.gov.uk/id/local-authority/30UE,Business Support,1095,Commercial Services,Refreshments,40036,Catering,5024,"Airpots (5 Litre), teaspoons and wicker baskets. Price per your quote 50993637, 256.25 plus 51.25 vat",21/02/2020,0144578,256.25,Revenue,Nisbets PLC,19593,,
Chorley Borough Council,http://statistics.data.gov.uk/id/local-authority/30UE,Control Accounts,Control,Policy & Governance,Manual Control Account,00001,Balance Sheet,Balance,refund bank trans made in error,05/02/2020,0144124,278.98,Revenue,North West Ambulance Service NHS Trust,78477,,
Chorley Borough Council,http://statistics.data.gov.uk/id/local-authority/30UE,Unapportionable Central OHeads,1009,Policy & Governance,Laundry,40042,"Clothing, Uniforms and Laundry",5025,"Invoice number 608 Tea towels and tablecloths laundered and pressed, collected and delivered. to 3rd January 2020",19/02/2020,0144357,504.50,Revenue,North West Ironing & Laundry Centre,20450,,
Chorley Borough Council,http://statistics.data.gov.uk/id/local-authority/30UE,Business Support,1095,Commercial Services,Refreshments,40036,Catering,5024,refreshment order - vatable supplies,21/02/2020,0144567,6.99,Revenue,North West Tea FM Solutions,78255,,
Chorley Borough Council,http://statistics.data.gov.uk/id/local-authority/30UE,Business Support,1095,Commercial Services,Refreshments,40036,Catering,5024,refreshment order - non vatable supplies,21/02/2020,0144567,355.85,Revenue,North West Tea FM Solutions,78255,,
Chorley Borough Council,http://statistics.data.gov.uk/id/local-authority/30UE,Democratic Represent and  Mgnt,1007,Commercial Services,Electricity,20013,Energy Costs,5006,1/1/20 to 31/1/20,28/02/2020,0144684,669.90,Revenue,Npower Commercial Gas,16814,,
Chorley Borough Council,http://statistics.data.gov.uk/id/local-authority/30UE,Homelessness,1075,Commercial Services,Electricity,20013,Energy Costs,5006,1/1/20 to 31/1/20,21/02/2020,0144715,270.31,Revenue,Npower Commercial Gas,16814,,
Chorley Borough Council,http://statistics.data.gov.uk/id/local-authority/30UE,Homelessness,1075,Commercial Services,Electricity,20013,Energy Costs,5006,1/1/20 to 31/1/20,28/02/2020,0144721,554.92,Revenue,Npower Commercial Gas,16814,,
Chorley Borough Council,http://statistics.data.gov.uk/id/local-authority/30UE,Democratic Represent and  Mgnt,1007,Commercial Services,Electricity,20013,Energy Costs,5006,1/1/20 to 31/1/20,28/02/2020,0144735,963.67,Revenue,Npower Commercial Gas,16814,,
Chorley Borough Council,http://statistics.data.gov.uk/id/local-authority/30UE,Parking Services,1066,Commercial Services,External Contractors,50008,Private Contractors,5042,"Provision of off street car park enforcement, cash collection, cash counting and third party collections for 01.04.19 - 31.03.20",12/02/2020,0144319,"4,641.95",Revenue,NSL Limited,67253,,
Chorley Borough Council,http://statistics.data.gov.uk/id/local-authority/30UE,Corporate Management,1008,Chief Executive,HR Approved Training Expenses,17001,Indirect Employee Expenses,5002,Staff survey,28/02/2020,0144433,"3,265.00",Revenue,NWA Social & Market Research Limited,20931,,
Chorley Borough Council,http://statistics.data.gov.uk/id/local-authority/30UE,Business Support,1095,Commercial Services,Cleaning/Attendants' Services,20041,Cleaning and Domestic Supplies,5012,Cleaning at SF in January 2020,05/02/2020,0144173,"1,563.52",Revenue,OC Cleaning Solutions Limited,78311,,
Chorley Borough Council,http://statistics.data.gov.uk/id/local-authority/30UE,Unapportionable Central OHeads,1009,Policy & Governance,HR Approved Training Expenses,17001,Indirect Employee Expenses,5002,Manual Handling Training,19/02/2020,0136730,"1,190.00",Revenue,Osteopathic Solutions,77875,,
Chorley Borough Council,http://statistics.data.gov.uk/id/local-authority/30UE,Business Support,1095,Early Intervention,Furniture - Purchase,40012,"Equipment, Furniture & Materia",5023,vaccum cleaner line on Po fully rec`d in error,05/02/2020,0143602,726.74,Revenue,Pattersons Holdings (Bristol),77537,,
Chorley Borough Council,http://statistics.data.gov.uk/id/local-authority/30UE,Unapportionable Central OHeads,1009,Commercial Services,Planned Maintenance,20006,Repairs Maintenance & Alts,5005,Blanket PPM,05/02/2020,0144193,"1,026.72",Revenue,Pennine Fire & Safety Limited,69643,,
Chorley Borough Council,http://statistics.data.gov.uk/id/local-authority/30UE,Unapportionable Central OHeads,1009,Policy & Governance,HR Approved Occ Health Fees,15201,Indirect Employee Expenses,5002,75 Flu Vaccines and 45 Vouchers,26/02/2020,0144514,825.00,Revenue,People Asset Management Limited,76487,,
Chorley Borough Council,http://statistics.data.gov.uk/id/local-authority/30UE,Capital,Capital,Commercial Services,Consultants Fees,03025,Capital Expenditure,Capital,To provide Project Management for Market Walk and associated schemes (previous order no: REDACTED),07/02/2020,0144299,"1,688.48",Capital,Perfect Circle JV Ltd,76438,,
Chorley Borough Council,http://statistics.data.gov.uk/id/local-authority/30UE,Capital,Capital,Commercial Services,Consultants Fees,03025,Capital Expenditure,Capital,To provide the Quantity Surveying Market Walk & associated schemes (previous order no: REDACTED),07/02/2020,0144299,"1,916.98",Capital,Perfect Circle JV Ltd,76438,,
Chorley Borough Council,http://statistics.data.gov.uk/id/local-authority/30UE,Service Management & Support,1009,Customer & Digital,Supplies-Grounds Maintenance,40025,"Equipment, Furniture & Materia",5023,"Supply indoor plants for the Mayors Ball, Town Hall",19/02/2020,0144571,265.00,Revenue,Peter H Smith Limited,17088,,
Chorley Borough Council,http://statistics.data.gov.uk/id/local-authority/30UE,Central Support Services,1009,Early Intervention,Pest Control,20039,Cleaning and Domestic Supplies,5012,Pest Control Interventions/Treatment,05/02/2020,0144165,390.00,Revenue,Peter L Johnson,16727,,
Chorley Borough Council,http://statistics.data.gov.uk/id/local-authority/30UE,Central Support Services,1009,Early Intervention,Pest Control,20039,Cleaning and Domestic Supplies,5012,Pest Control Interventions/Treatment,05/02/2020,0144191,390.00,Revenue,Peter L Johnson,16727,,
Chorley Borough Council,http://statistics.data.gov.uk/id/local-authority/30UE,Service Management & Support,1009,Customer & Digital,Diesel/Derv,30007,Direct Transport Costs,5016,"as per procured through the chest 3800 litres of road diesel 2000 litres of gas oil Delivered to Bengal Street Depot, PR7 1SA",05/02/2020,0144175,"3,800.00",Revenue,Pilkington Oils,18075,,
Chorley Borough Council,http://statistics.data.gov.uk/id/local-authority/30UE,Service Management & Support,1009,Customer & Digital,Diesel/Derv,30007,Direct Transport Costs,5016,"as per procured through the chest 3800 litres of road diesel 2000 litres of gas oil Delivered to Bengal Street Depot, PR7 1SA",05/02/2020,0144178,"1,080.00",Revenue,Pilkington Oils,18075,,
Chorley Borough Council,http://statistics.data.gov.uk/id/local-authority/30UE,Capital,Capital,Early Intervention,Equipment,03014,Capital Expenditure,Capital,Abbey Village Play Area equipment. Quote no 61820.  Chorley Council part payment.  Withnell P C supplying remaining funding.,12/02/2020,0144317,"7,479.25",Capital,Playdale Playgrounds Limited,18672,,
Chorley Borough Council,http://statistics.data.gov.uk/id/local-authority/30UE,Precepts and Collection Fund,Precepts,Policy & Governance,LPA Precept,02010,Precepts & Collection Fund,Precept,,19/02/2020,0144352,"754,167.00",Revenue,Police & Crime Commissioner,17438,,
Chorley Borough Council,http://statistics.data.gov.uk/id/local-authority/30UE,Central Support Services,1009,Early Intervention,Other Contributions,40145,Grants and Subscriptions,5031,Chorley`s contribution to domestic abuse services for 2019/20,14/02/2020,0144403,"9,000.00",Revenue,Police & Crime Commissioner,17548,,
Chorley Borough Council,http://statistics.data.gov.uk/id/local-authority/30UE,Unapportionable Central OHeads,1009,Customer & Digital,Furniture - Purchase,40012,"Equipment, Furniture & Materia",5023,"ErgoBeads Keyboard Wrist Rest, Positiv Me 100 Task Chair (medium back - upholstered) Chair delivery, install, set up, support ",05/02/2020,0144177,494.00,Revenue,Posturite UK Ltd,18538,,
Chorley Borough Council,http://statistics.data.gov.uk/id/local-authority/30UE,Capital,Capital,Early Intervention,Grants,03002,Capital Expenditure,Capital,ADDRESS REDACTED,28/02/2020,0144777,"1,791.52",Capital,Preston Care and Repair,50018,,
Chorley Borough Council,http://statistics.data.gov.uk/id/local-authority/30UE,Elections,1012,Policy & Governance,Printing,40043,"Printing, Stationery & General",5026,Type A review lettters,07/02/2020,0144316,668.00,Revenue,Print Image Network,21171,,
Chorley Borough Council,http://statistics.data.gov.uk/id/local-authority/30UE,Interest Payable on Debt,1020,Policy & Governance,Interest Payable,09009,Interest Payments,5067,interest LN 502694-502699,19/02/2020,0144169,"48,518.00",Revenue,Public Works Loans Board,21480,,
Chorley Borough Council,http://statistics.data.gov.uk/id/local-authority/30UE,Interest Payable on Debt,1020,Policy & Governance,Interest Payable,09009,Interest Payments,5067,interest LN 502694 502699,19/02/2020,0144170,"75,328.00",Revenue,Public Works Loans Board,21480,,
Chorley Borough Council,http://statistics.data.gov.uk/id/local-authority/30UE,Interest Payable on Debt,1020,Policy & Governance,Interest Payable,09009,Interest Payments,5067,interest LN 502694-502699,19/02/2020,0144522,"299,200.00",Revenue,Public Works Loans Board,21480,,
Chorley Borough Council,http://statistics.data.gov.uk/id/local-authority/30UE,Unapportionable Central OHeads,1009,Policy & Governance,HR Recruitment - Advertising,15300,Indirect Employee Expenses,5002,Job Listing in Public Finance Online from 14/01/20 - 31/01/20,26/02/2020,0144472,"1,200.00",Revenue,Redactive Media Sales Ltd,21251,,
Chorley Borough Council,http://statistics.data.gov.uk/id/local-authority/30UE,Control Accounts,Control,Policy & Governance,General Balances,00100,Balance Sheet,Balance,,19/02/2020,0144290,839.75,Revenue,Reward Gateway (UK) Ltd,66814,,
Chorley Borough Council,http://statistics.data.gov.uk/id/local-authority/30UE,Control Accounts,Control,Policy & Governance,General Balances,00100,Balance Sheet,Balance,,19/02/2020,0144290,"2,512.00",Revenue,Reward Gateway (UK) Ltd,66814,,
Chorley Borough Council,http://statistics.data.gov.uk/id/local-authority/30UE,Non Domestic Rates Redistribut,,Policy & Governance,Tariff to Business Rates Pool,49002,Expenditure not in NCOS,,lancs bus rates pool,19/02/2020,0144159,"809,288.00",Revenue,Ribble Valley Borough Council DIRECT DEBIT ONLY,21100,,
Chorley Borough Council,http://statistics.data.gov.uk/id/local-authority/30UE,Non Domestic Rates Redistribut,,Policy & Governance,Tariff to Business Rates Pool,49002,Expenditure not in NCOS,,lancs bus rates pool,19/02/2020,0144160,"809,288.00",Revenue,Ribble Valley Borough Council DIRECT DEBIT ONLY,21100,,
Chorley Borough Council,http://statistics.data.gov.uk/id/local-authority/30UE,Elections,1012,Policy & Governance,Postages,40082,Communication and Computing,5028,"General Election - Postal vote Licence fee, timed delivery",07/02/2020,0144341,892.40,Revenue,Royal Mail Group Plc,17522,,
Chorley Borough Council,http://statistics.data.gov.uk/id/local-authority/30UE,Elections,1012,Policy & Governance,Postages,40082,Communication and Computing,5028,Business reply licence RRHA-KZCB-CAXA - from September 2019,19/02/2020,0144535,534.25,Revenue,Royal Mail Group Plc,17522,,
Chorley Borough Council,http://statistics.data.gov.uk/id/local-authority/30UE,Planning Policy,1092,Early Intervention,Training Course Fees,17010,Indirect Employee Expenses,5002,"Chorley Spatial Planning department RTPI training bookings in the North West in 2020, 10 staff members attending 22 courses.",05/02/2020,0143810,"1,810.50",Revenue,RTPI North West,16769,,
Chorley Borough Council,http://statistics.data.gov.uk/id/local-authority/30UE,Elections,1012,Policy & Governance,Rent/Hire Of Premises,20017,Premises Rents,5007,room hire for polling station 12 December 2019,19/02/2020,0144591,337.50,Revenue,Sacred Heart Catholic Primary School,78522,,
Chorley Borough Council,http://statistics.data.gov.uk/id/local-authority/30UE,Unapportionable Central OHeads,1009,Policy & Governance,HR Approved Occ Health Fees,15201,Indirect Employee Expenses,5002,Counselling sessions for staff during January 2020 - NAMES REDACTED,26/02/2020,0144396,525.00,Revenue,Sarah Walsh,78412,,
Chorley Borough Council,http://statistics.data.gov.uk/id/local-authority/30UE,Service Management & Support,1009,Customer & Digital,Grounds Maintenance Contractor,20043,Grounds Maintenance Costs,5013,6 x visits to Bengal Street Depot to load skips due to Tractor being repaired,12/02/2020,0144356,300.00,Revenue,Scambler Plant Hire Ltd,16710,,
Chorley Borough Council,http://statistics.data.gov.uk/id/local-authority/30UE,Business Support,1095,Commercial Services,Security Service,40062,Services,5027,Final month of contract at Market Walk for manned guarding - additional month was added due service need.  8461.25,14/02/2020,0144428,"8,461.25",Revenue,Securitas Security Services (UK) Ltd,70693,,
Chorley Borough Council,http://statistics.data.gov.uk/id/local-authority/30UE,Central Support Services,1009,Early Intervention,Miscellaneous Expenses,40200,Miscellaneous Expenses,5034,Invoice part 2 for Harpers Lane physical activity sessions delivered by SHAPE Lancashire on behalf of Chorley Council,21/02/2020,0144672,502.20,Revenue,SHAPE Lancashire Community Interest Company,77935,,
Chorley Borough Council,http://statistics.data.gov.uk/id/local-authority/30UE,Business Support,1095,Commercial Services,Miscellaneous Expenses,40200,Miscellaneous Expenses,5034,Exhibition at Lancashire Business Expo 2020,21/02/2020,0144639,495.00,Revenue,Shout Network Limited,69551,,
Chorley Borough Council,http://statistics.data.gov.uk/id/local-authority/30UE,Corporate Management,1008,Customer & Digital,Miscellaneous Expenses,40200,Miscellaneous Expenses,5034,"SRBC Opt In Garden Waste Income for 367 properties at 30 each, 11,010.",26/02/2020,0144190,"11,010.00",Revenue,South Ribble Borough Council,17889,,
Chorley Borough Council,http://statistics.data.gov.uk/id/local-authority/30UE,Unapportionable Central OHeads,1009,Policy & Governance,IT Software - Annual Licences,40101,Communication and Computing,5028,Civica Financials 1st April 2019 - 31st March 2020,19/02/2020,0144494,"14,974.17",Revenue,South Ribble Borough Council,17889,,
Chorley Borough Council,http://statistics.data.gov.uk/id/local-authority/30UE,Unapportionable Central OHeads,1009,Policy & Governance,Publications,40054,"Printing, Stationery & General",5026,CIPFA Publications subscription 1st April 2019 - 31st March 2020,19/02/2020,0144494,"2,767.50",Revenue,South Ribble Borough Council,17889,,
Chorley Borough Council,http://statistics.data.gov.uk/id/local-authority/30UE,Unapportionable Central OHeads,1009,Policy & Governance,General Subscriptions,40146,Grants and Subscriptions,5031,CIPFA Financial Advisory Network subscription 1st April 2019 - 31st March 2020,19/02/2020,0144494,"1,577.50",Revenue,South Ribble Borough Council,17889,,
Chorley Borough Council,http://statistics.data.gov.uk/id/local-authority/30UE,Central Support Services,1009,Early Intervention,Miscellaneous Expenses,40200,Miscellaneous Expenses,5034,Spice / Tempo access to the Time Credits network and support to transition the management to Chorley Council.,14/02/2020,0143091,"7,125.00",Revenue,Spice Innovations Ltd T/A Tempo Time Credits,61318,,
Chorley Borough Council,http://statistics.data.gov.uk/id/local-authority/30UE,Central Support Services,1009,Early Intervention,Miscellaneous Expenses,40200,Miscellaneous Expenses,5034,Spice / Tempo access to the Time Credits network and support to transition the management to Chorley Council.,21/02/2020,0144574,"6,125.00",Revenue,Spice Innovations Ltd T/A Tempo Time Credits,61318,,
Chorley Borough Council,http://statistics.data.gov.uk/id/local-authority/30UE,Democratic Represent and  Mgnt,1007,Early Intervention,Consultants` Fees,40077,Services,5027,Waiver approved - Leisure Contract,05/02/2020,0144118,"3,800.00",Revenue,Sport Leisure and Culture Consultancy,77651,,
Chorley Borough Council,http://statistics.data.gov.uk/id/local-authority/30UE,Unapportionable Central OHeads,1009,Policy & Governance,IT Software - Annual Licences,40101,Communication and Computing,5028,sprout social subs,19/02/2020,0144117,"3,865.87",Revenue,Sprout Social,78471,,
Chorley Borough Council,http://statistics.data.gov.uk/id/local-authority/30UE,Elections,1012,Policy & Governance,Rent/Hire Of Premises,20017,Premises Rents,5007,Room Hire for polling station general election - 12 December 2019,07/02/2020,0144155,250.00,Revenue,St Bedes Parish Centre,19876,,
Chorley Borough Council,http://statistics.data.gov.uk/id/local-authority/30UE,Control Accounts,Control,Policy & Governance,General Balances,00100,Balance Sheet,Balance,Monthly deductions from Payroll,19/02/2020,0144625,451.36,Revenue,St Catherines Hospice Promotions,72375,,
Chorley Borough Council,http://statistics.data.gov.uk/id/local-authority/30UE,Capital,Capital,Commercial Services,Other Capital Related Fees,03024,Capital Expenditure,Capital,Provision of Public realm & Highway Design Engineering Services,28/02/2020,0144766,"2,340.90",Capital,Street Civil Engineering Limited,76750,,
Chorley Borough Council,http://statistics.data.gov.uk/id/local-authority/30UE,Capital,Capital,Commercial Services,Grants,03002,Capital Expenditure,Capital,ADDRESS REDACTED,28/02/2020,0144671,"4,011.00",Capital,Stringfellow Bldg Cntrctrs Ltd,17893,,
Chorley Borough Council,http://statistics.data.gov.uk/id/local-authority/30UE,Capital,Capital,Early Intervention,Grants,03002,Capital Expenditure,Capital,ADDRESS REDACTED,28/02/2020,0144778,"3,380.00",Capital,Stringfellow Bldg Cntrctrs Ltd,17893,,
Chorley Borough Council,http://statistics.data.gov.uk/id/local-authority/30UE,Capital,Capital,Early Intervention,Grants,03002,Capital Expenditure,Capital,ADDRESS REDACTED,28/02/2020,0144779,"3,880.82",Capital,Stringfellow Bldg Cntrctrs Ltd,17893,,
Chorley Borough Council,http://statistics.data.gov.uk/id/local-authority/30UE,Service Management & Support,1009,Customer & Digital,Refuse Collection,20037,Cleaning and Domestic Supplies,5012,Exchange 20 yard street sweeping skip for transportation to Farrington Waste Disposal site  01/07/19 - 31/05/2020,05/02/2020,0143736,"1,457.28",Revenue,SUEZ R&R UK LTD,17615,,
Chorley Borough Council,http://statistics.data.gov.uk/id/local-authority/30UE,Service Management & Support,1009,Customer & Digital,Refuse Collection,20037,Cleaning and Domestic Supplies,5012,Exchange 35 yard street cleaning & fly tipping skip for transportation to Whinny Hill Waste disposal site 01/07/19 - 31/05/2020,05/02/2020,0143736,990.99,Revenue,SUEZ R&R UK LTD,17615,,
Chorley Borough Council,http://statistics.data.gov.uk/id/local-authority/30UE,Service Management & Support,1009,Customer & Digital,Refuse Collection,20037,Cleaning and Domestic Supplies,5012,Exchange 35 yard Green Waste skip for delivery to your depot for processing 01/07/19 - 31/05/2020,05/02/2020,0143736,337.04,Revenue,SUEZ R&R UK LTD,17615,,
Chorley Borough Council,http://statistics.data.gov.uk/id/local-authority/30UE,Service Management & Support,1009,Customer & Digital,Refuse Collection,20037,Cleaning and Domestic Supplies,5012,Disposal Charge for Green Waste contained in 35 yard skip @37.50 per unit 01/07/19 - 31/05/2020,05/02/2020,0143736,459.00,Revenue,SUEZ R&R UK LTD,17615,,
Chorley Borough Council,http://statistics.data.gov.uk/id/local-authority/30UE,Democratic Represent and  Mgnt,1007,Early Intervention,Grounds Maintenance Contractor,20043,Grounds Maintenance Costs,5013,"To mow and remove the bales off site at Blainscough Wood Nature Reserve, Coppull.   To be carried out in Aug or early Sept.",05/02/2020,0144238,800.00,Revenue,T & L Kirkham,17058,,
Chorley Borough Council,http://statistics.data.gov.uk/id/local-authority/30UE,Service Management & Support,1009,Early Intervention,External Contractor,40198,Miscellaneous Expenses,5034,Meadow Mowing at Valley Bottoms.  Dob Brow end to be prioritized to be cut before 27th August. Bales to be taken off site.,05/02/2020,0144242,850.00,Revenue,T & L Kirkham,17058,,
Chorley Borough Council,http://statistics.data.gov.uk/id/local-authority/30UE,Democratic Represent and  Mgnt,1007,Policy & Governance,Tools & Equipment - Maintenance,40005,"Equipment, Furniture & Materia",5023,Gold level of maintenance for the PA system in the Lancastrian for the period Jan 15th 2020 to 14th January 2020,07/02/2020,0144210,878.00,Revenue,T G Baker (sound) LTD,22364,,
Chorley Borough Council,http://statistics.data.gov.uk/id/local-authority/30UE,Central Support Services,1009,Customer & Digital,Computer Equipment-Purchase,40098,Communication and Computing,5028,Upgrade of Camera 1 to wireless link 2 x RADWIN 2000 ALPHA ODU 50Mbps 2 x RADWIN AC POE INJECTOR FOR ODUs,28/02/2020,0144773,"1,362.55",Revenue,Technology Solutions,72376,,
Chorley Borough Council,http://statistics.data.gov.uk/id/local-authority/30UE,Democratic Represent and  Mgnt,1007,Policy & Governance,Mayoral Hospitality,40123,Expenses,5030,"Catering for the  Mayor`s Charity Ball - 14th February 2020. 196 Covers,  196 Cutlery and crockery, 6 Waiters",26/02/2020,0144649,"2,492.80",Revenue,The Catering Co,78490,,
Chorley Borough Council,http://statistics.data.gov.uk/id/local-authority/30UE,Economic Development,1096,Commercial Services,General Subscriptions,40146,Grants and Subscriptions,5031,CCTV User Group Membership renewal December 2019,21/02/2020,0144581,275.00,Revenue,The CCTV User Group,68077,,
Chorley Borough Council,http://statistics.data.gov.uk/id/local-authority/30UE,Business Support,1095,Early Intervention,Security Service,40062,Services,5027,Security cover for December/extra cover over Xmas,21/02/2020,0143569,"6,900.00",Revenue,The ExcluSec Group Ltd,78056,,
Chorley Borough Council,http://statistics.data.gov.uk/id/local-authority/30UE,Business Support,1095,Commercial Services,Security Service,40062,Services,5027,Security cover at SF for January 2020,14/02/2020,0144412,"6,350.88",Revenue,The ExcluSec Group Ltd,78056,,
Chorley Borough Council,http://statistics.data.gov.uk/id/local-authority/30UE,Business Support,1095,Commercial Services,Miscellaneous Expenses,40200,Miscellaneous Expenses,5034,Marketing support for Strawberry Fields Digital Hub & Digital Creative,28/02/2020,0144762,"1,500.00",Revenue,THE EXTRAORDINARY CLUB,78466,,
Chorley Borough Council,http://statistics.data.gov.uk/id/local-authority/30UE,Central Support Services,1009,Customer & Digital,Miscellaneous Expenses,40200,Miscellaneous Expenses,5034,60 x LP1033 community litterpicker @ 6.31each,07/02/2020,0144291,378.60,Revenue,The Helping Hand Company,17779,,
Chorley Borough Council,http://statistics.data.gov.uk/id/local-authority/30UE,Central Support Services,1009,Customer & Digital,Miscellaneous Expenses,40200,Miscellaneous Expenses,5034,15 x Handihoop bag holder (LP0011) @ 6.97each,07/02/2020,0144291,104.55,Revenue,The Helping Hand Company,17779,,
Chorley Borough Council,http://statistics.data.gov.uk/id/local-authority/30UE,Elections,1012,Policy & Governance,Publications,40054,"Printing, Stationery & General",5026,Schofield Election law update release 50 Jan 2020,12/02/2020,0144399,132.50,Revenue,Thomson Reuters RE;Sweet & Maxwell Limited,17932,,
Chorley Borough Council,http://statistics.data.gov.uk/id/local-authority/30UE,Elections,1012,Policy & Governance,Publications,40054,"Printing, Stationery & General",5026,non vat,12/02/2020,0144399,132.50,Revenue,Thomson Reuters RE;Sweet & Maxwell Limited,17932,,
Chorley Borough Council,http://statistics.data.gov.uk/id/local-authority/30UE,Central Support Services,1009,Commercial Services,Professional Fees,40063,Services,5027,Tatton Feasibility Study - (including healthcare planner),28/02/2020,0144764,"2,700.00",Revenue,Trebbi Continuum,77723,,
Chorley Borough Council,http://statistics.data.gov.uk/id/local-authority/30UE,Central Support Services,1009,Commercial Services,Professional Fees,40063,Services,5027,Stage 2 Architectural work as carried out by White Design Project Management Services in accordance with fee proposal,28/02/2020,0144764,"17,800.00",Revenue,Trebbi Continuum,77723,,
Chorley Borough Council,http://statistics.data.gov.uk/id/local-authority/30UE,Unapportionable Central OHeads,1009,Customer & Digital,Service Fees,40056,Services,5027,Daily hybrid mail & annual billing,05/02/2020,0143821,"1,282.34",Revenue,UKMAIL Ltd (Mail),57758,,
Chorley Borough Council,http://statistics.data.gov.uk/id/local-authority/30UE,Unapportionable Central OHeads,1009,Customer & Digital,Service Fees,40056,Services,5027,Daily hybrid mail & annual billing,05/02/2020,0144239,"1,689.94",Revenue,UKMAIL Ltd (Mail),57758,,
Chorley Borough Council,http://statistics.data.gov.uk/id/local-authority/30UE,Unapportionable Central OHeads,1009,Customer & Digital,Service Fees,40056,Services,5027,Daily hybrid mail & annual billing,19/02/2020,0144393,913.32,Revenue,UKMAIL Ltd (Mail),57758,,
Chorley Borough Council,http://statistics.data.gov.uk/id/local-authority/30UE,Control Accounts,Control,Policy & Governance,General Balances,00100,Balance Sheet,Balance,Monthly Deductions from Payroll,19/02/2020,0144624,"2,878.60",Revenue,Unify Credit Union Ltd,55509,,
Chorley Borough Council,http://statistics.data.gov.uk/id/local-authority/30UE,Central Support Services,1009,Commercial Services,Rent/Hire Of Premises,20017,Premises Rents,5007,Room Hire for courses,05/02/2020,0144189,360.00,Revenue,United Reformed Church,20885,,
Chorley Borough Council,http://statistics.data.gov.uk/id/local-authority/30UE,Economic Development,1096,Policy & Governance,Car Leasing Payment,14100,Direct Employee Expenses,5001,VIN REDACTED NAME REDACTED,05/02/2020,0144114,"1,992.34",Revenue,VWFS UK Ltd T/A Volkswagen Group Leasing,56010,,
Chorley Borough Council,http://statistics.data.gov.uk/id/local-authority/30UE,Economic Development,1096,Policy & Governance,Car Leasing Payment,14100,Direct Employee Expenses,5001,vat,05/02/2020,0144114,170.41,Revenue,VWFS UK Ltd T/A Volkswagen Group Leasing,56010,,
Chorley Borough Council,http://statistics.data.gov.uk/id/local-authority/30UE,Control Accounts,Control,Policy & Governance,Manual Control Account,00001,Balance Sheet,Balance,-vat,05/02/2020,0144114,-170.41,Revenue,VWFS UK Ltd T/A Volkswagen Group Leasing,56010,,
Chorley Borough Council,http://statistics.data.gov.uk/id/local-authority/30UE,Central Support Services,1009,Commercial Services,Water - Unmetered Supply,20023,Water Services,5009,1/4/20 to 31/3/2021,28/02/2020,0144786,"3,858.08",Revenue,Water-plus,17926,,
Chorley Borough Council,http://statistics.data.gov.uk/id/local-authority/30UE,Democratic Represent and  Mgnt,1007,Policy & Governance,Grants To Other Organisations,40127,Grants and Subscriptions,5031,cllr grant,19/02/2020,0144520,250.00,Revenue,Whittle le Woods Playing Field Trust,57316,,
Chorley Borough Council,http://statistics.data.gov.uk/id/local-authority/30UE,Service Management & Support,1009,Customer & Digital,Supplies-Grounds Maintenance,40025,"Equipment, Furniture & Materia",5023,24 x Universal Padlock `H` keyed alike @ 11.43,12/02/2020,0144340,274.32,Revenue,Wilcock & Sons,18008,,
Chorley Borough Council,http://statistics.data.gov.uk/id/local-authority/30UE,Corporate Management,1008,Customer & Digital,Provn Of Street Furniture,20057,Grounds Maintenance Costs,5013,"15x120 Litre Galvanised Steel Litter Bin Complete With Slight Peaked Capped Lid, Petal Ashtray and Stainless Steel Rod Hinge",05/02/2020,0144212,"2,992.50",Revenue,Wybone Ltd,18097,,
Chorley Borough Council,http://statistics.data.gov.uk/id/local-authority/30UE,Central Support Services,1009,Customer & Digital,Other Fees,40212,Miscellaneous Expenses,5034,Xeretec - printing,12/02/2020,0144257,397.74,Revenue,Xeretec Document Solutions,20052,,
Chorley Borough Council,http://statistics.data.gov.uk/id/local-authority/30UE,Homelessness,1075,Policy & Governance,Hire Of Vehicles and Plant,30028,Contrct Hire & Operating Lease,5018,In lieu of BACS refunded,21/02/2020,0144749,"2,407.32",Revenue,Yellow Cabs (North West Ltd),52276,,
Chorley Borough Council,http://statistics.data.gov.uk/id/local-authority/30UE,Corporate Management,1008,Chief Executive,Employee Related Insurance,18003,Indirect Employee Expenses,5002,Engineering Insurance Engineering Inspection For the period Jan - Dec 2020,05/02/2020,0143742,"2,029.34",Revenue,Zurich Insurance Company,16236,,
